{"text_format":"1","workbook":"xlsx","n_sheets":22,"sheets":["Cover Page","Contents","Facility Info","Operational Data","Operational Summary","Perf. Form 1","Energy Form 1","Permit Compliance","Improvements","Public Liasion","Residue Quality ","Water","Air (periodic)","Air (CEMS)","HCl","SO2","NOx","TOC","Particulates","CO 0.5hourly","HF","NH3"],"not_rendered":{"charts":8,"images":2,"macros":1,"external_links":0,"defined_names":22,"comments":0,"pivot_tables":0},"unopened":[],"bounds":{"document_bytes":16777216,"sheet_cells":100000,"rows_first":2000,"rows_last":500,"rows_between":2000,"halvings":0,"cell_chars":16384,"cell_head_chars":4096},"cells_cut":0,"cells_raw":0,"read":"whole","date_system":"1900"}

{"sheet":"Cover Page","index":0,"n_rows":54,"n_cols":14,"rows_kept":54,"cut":false,"hidden":false,"merged":[[13,13,18,15],[34,1,34,8],[0,3,5,6],[7,1,23,8],[28,1,28,8],[30,1,30,8],[32,1,32,8],[49,2,49,3],[49,6,49,8],[53,2,53,3],[36,1,36,8],[40,2,40,8],[42,2,42,4],[44,2,44,4],[46,2,46,3],[46,6,46,8],[47,2,47,3],[47,6,47,8]]}
[null,null,null,"Add company logo"]
[null,null,null,null,null,null,null,null,null,null,null,null,null,"Version 20.6 "]
[]
[]
[]
[]
[]
[null,"Add photo"]
[]
[]
[]
[]
[null,null,null,null,null,null,null,null,null,null,null,null,null,"Notes:"]
[null,null,null,null,null,null,null,null,null,null,null,null,null,"This template may require adjustments by individual operators to meet specific reporting requirements as defined in the site Permit(s)"]
[]
[]
[]
[]
[]
[]
[]
[]
[]
[]
[]
[]
[]
[]
[null,"Annual Performance Report 2021"]
[]
[null,"Permit EPR/GP3433GH"]
[]
[null,"Cornwall Energy Recovery Centre"]
[]
[]
[]
[null,"SUEZ Recycling and Recovery UK Ltd"]
[]
[null,"Year:",2021]
[]
[null,"Address:","St Dennis, St Austell, Cornwall, PL26 8DY"]
[]
[null,"Tel: ","07970 233762"]
[]
[null,"Email: ","07970 233762"]
[]
[null,"Prepared by:","Richard Watkins",null,null,"Position:","EIR Manager"]
[null,null,"Allan Chapman",null,null,null,"Technical Plant Engineer"]
[]
[null,"Approved by:","Tony Burge",null,null,"Position:","Plant Manager"]
[]
[null,"Version:",1]
[]
[null,"Issue Date:","2022-01-27"]

{"sheet":"Contents","index":1,"n_rows":44,"n_cols":11,"rows_kept":44,"cut":false,"hidden":false,"merged":[[4,10,7,14],[8,1,8,6],[3,1,3,6],[4,1,4,6],[5,1,5,6],[6,1,6,6],[7,1,7,6],[20,1,20,6],[9,1,9,6],[10,1,10,6],[11,1,11,6],[12,1,12,6],[13,1,13,6],[14,1,14,6],[15,1,15,6],[16,1,16,6],[17,1,17,6],[18,1,18,6],[19,1,19,6],[35,1,35,6],[21,1,21,6],[23,1,23,6],[26,1,26,6],[27,1,27,6],[28,1,28,6],[29,1,29,6],[30,1,30,6],[31,1,31,6],[34,1,34,6],[22,1,22,6],[43,0,46,9],[36,1,36,6],[37,1,37,6],[38,1,38,6],[39,1,39,6],[40,1,40,6],[41,1,41,6]]}
[{"$f":"+'Cover Page'!$B$29","v":"Annual Performance Report 2021"},null,null,null,{"$f":"+'Cover Page'!$B$33","v":"Cornwall Energy Recovery Centre"}]
[]
["Contents",null,null,null,null,null,null,null,null,null,"Notes:"]
["Section","Subject",null,null,null,null,null,"Page ",null,null,"Section references and Page nos. to be inserted"]
[null,"Facility Information",null,null,null,null,null,null,null,null,"Sections and Subjects may require adjustment by individual operators to meet specific reporting requirements as defined in the sites Permit(s)"]
[null,"Operational Summary"]
[null,"Operational Data"]
[null,"Performance Form 1"]
[null,"Energy Form 1"]
[null,"Permit Compliance"]
[null,"Improvements"]
[null,"Public Liasion"]
[null,"Residue Quality - Optional"]
[null,"Emissions to Water"]
[null,"Emissions to Air (periodically monitored)"]
[null,"Emissions to Air (continuously monitored)"]
[null,"Hydrogen Chloride emissions"]
[null,"Sulphur Dioxdie emsissions"]
[null,"Oxides of Nitrogen emissions"]
[null,"Total Organic Carbon emissions"]
[null,"Particulate Matter emissions"]
[null,"Carbon Monoxide emissions"]
[null,"Hydrogen Fluoride emissions"]
[null,"Ammonia emissions"]
[]
["Version Control"]
["Section","Information",null,null,null,null,null,"Date"]
[]
[]
[]
[]
[]
[]
["Distribution"]
["Copy","Name, Role",null,null,null,null,null,"No."]
[1,"Site Operations Team"]
[2,"Environment & Industrial Risk Team"]
[3,"Environment Agency"]
[]
[]
[]
[]
[]
["This report is required under the Industrial Emissions Directive’s Article 55(2) requirements on reporting and public information on waste incineration plants and co-incineration plants, which require the operator to produce an annual report on the functioning and monitoring of the plant and make it available to the public. "]

{"sheet":"Facility Info","index":2,"n_rows":22,"n_cols":11,"rows_kept":22,"cut":false,"hidden":false,"merged":[[4,0,17,8],[21,0,58,8],[4,10,13,13],[21,10,30,13]]}
[{"$f":"+'Cover Page'!$B$29","v":"Annual Performance Report 2021"},null,null,null,{"$f":"+'Cover Page'!$B$33","v":"Cornwall Energy Recovery Centre"}]
[]
["Plant Description and Design",null,null,null,null,null,null,null,null,null,"Notes:"]
[]
["This non-hazardous waste incinerator operates 24/7 and the environmental permit allows it to process up to 240,000 tonnes of municipal waste and commercial/Industrial waste, however, in 2021 there was an agreement reached with the EA that allowed the facility to process over its permit allowance due to Covid waste streams. The plant has two furnace lines and the heat produced by waste incineration is used to raise superheated steam which generates approximately 188,000 MWh/annum of electricity.\n\nActivities associated with the incineration are receipt and storage of municipal waste and commercial/industrial waste, production of steam and electricity, abatement of flue gas and handling of Incinerator Bottom Ash (IBA) and Air Pollution Control Residue (APCR).\n\nThe data included within this report corresponds to the following period: 1st January 2021 to 31st December 2021.",null,null,null,null,null,null,null,null,null,"Include summary of plant design, design capacity, no. of combustion lines, electrical and heat capacity and any other general information that descibes the facility, its location and purpose "]
[]
[]
[]
[]
[]
[]
[]
[]
[]
[]
[]
[]
[]
[]
["Summary of Operational Processes and Procedures"]
[]
["Incoming waste is delivered to site by refuse collection trucks. It is weighed in and delivered into the tipping hall.\nTIPPING HALL - A large tipping hall allows for refuse collection trucks to manoeuvre and tip waste safely. Air needed for combustion is drawn into the furnace from here so that negative pressure is maintained in order to avoid odour and dust escaping the building.\n\nBUNKER - Waste vehicles reverse to a wheel stop and tip their loads into a large concrete bunker. Mixing of waste occurs as the cranes driver sorts the waste looking for unsuitable material to be removed, and to improve the homogeneity of the incinerator feedstock.\n\nCONTROL ROOM - The plant’s control room centralises the operation of all equipment, including the grab cranes used to mix and load waste into a hopper that feeds the furnace. All on-site functions are monitored automatically and manually.  Its systems verify in real time that equipment is functioning properly, continuously monitor the combustion gas, and maximise the efficiency of the entire ERC process.\n\nGRATE AND BOILER - Waste is lifted into the charging hoppers by the crane. From here it falls into the furnace-charging chute and then is introduced onto the grate system by hydraulic feeders for incineration. Auxiliary burners can be used to help keeping the temperature above 850°C if required. The thermal energy released from the burning is used to convert water to super-heated steam along a boiler composed of 4 passes. At high pressure, this steam drives a turbine to generate electricity.\n\nELECTRICITY GENERATION - Electricity is generated at 11kv, with an electric production of approximately 180,000 MWh/annum and exporting approximately 160,000 MWh/annum to the national grid.\n\nINCINERATOR BOTTOM ASH (IBA) - Ash left on the grate after incineration is carried by conveyor, after quenching, to the IBA processing facility.  Up to 65,000 tonne of IBA is processed on site by the removal of ferrous and non-ferrous metal, stabilised and separated into fraction sizes of IBA prior to the export from site of the processed IBA and metals for re-use.\n\nAIR-COOLED CONDENSERS - After exiting the turbine, the steam is cooled and condensed back into water through air condensers. This recovered water is treated and reused in the boilers to produce more steam.\n\nEMISSION CONTROL - The gases from the furnace are subject to a rigorous cleaning process involving ammonia as selective noncatalytic reduction (SNCR), lime and active carbon injections. This removes oxides of nitrogen, acidic gases, dioxins, and heavy metals from the gas stream.\n\nAIR POLLUTION CONTROL RESIDUE (APCR) - The cleaned gas passes through fine-fabric bag filters to remove solid particles before it is emitted through the stack. The resultant APCR residue, or fly-ash, contains particles from the incineration process, lime used in the flue gas treatment, salts and carbon dust. It is stored in a sealed silo until it is taken away for recycling in tankers.\n\nEMISSIONS MONITORING - As they pass through the stack, the residual flue gases from the process are continuously monitored before release. This data is relayed automatically to the control room.",null,null,null,null,null,null,null,null,null,"Include summary of key processes and procedures such as (but not limited to); waste reception, control rooms, grate, bed and bolier, energy & heat  generation, cooling systems, residue management, emission controls, health and safety systems, maintenance"]

{"sheet":"Operational Data","index":3,"n_rows":65,"n_cols":11,"rows_kept":65,"cut":false,"hidden":false,"merged":[[3,1,3,2],[7,1,19,1],[23,1,26,1],[28,1,29,1],[52,0,56,0],[5,10,6,10],[7,10,18,10],[33,1,38,1],[30,2,30,5],[30,6,30,7]]}
[{"$f":"+'Cover Page'!$B$29","v":"Annual Performance Report 2021"},null,null,null,{"$f":"+'Cover Page'!$B$33","v":"Cornwall Energy Recovery Centre"}]
[]
["Operational Data",null,null,null,null,null,null,null,null,null,"Notes:"]
["Plant Size",240000,null,"tonnes pa",86,"MWth",24,"MWe",null,null,"* - RDF to include SRF "]
["No. of combustion lines",2,null,"No. of Turbines:",null,1,null,null,null,null,"** - CHP plants only"]
[null,null,null,null,null,null,null,null,null,null,"2020 updates include;  heat in MWh, water in Litres, NCV in MJ/kg"]
["Waste types received","Unit","Q1","Q2","Q3","Q4","Year Total","%"]
["Household / Local Authority","tonnes",42546,42783,43342,39778,{"$f":"SUM(C8:F8)","v":168449},{"$f":"IF(G8>0,G8/$G$18,\"-\")","v":0.6813563298358587},null,null,"Availabiity Definition: 'the availability of a line is to be calculated by the number of hours the line reported Continuously Monitored emission levels to the Regulator through the calendar year divided by the total number of hours in that year. \nThe overall plant availability is calculated as the Mean of all lines in the plant. For clarity this includes periods of Other Than Normal Operating Conditions (OTNOC) and abnormal operation.'  \n\nRationale: The primary function of an Energy from Waste facility is the disposal of waste. It follows therefore that the availability of a plant is determined by the period of time a facility spends undertaking this activity."]
["Commercial & Industrial ",null,21238,15347,22054,20138,{"$f":"SUM(C9:F9)","v":78777},0.3186436701641413]
["Hazardous ",null,null,null,null,null,0,"-"]
["Clinical",null,null,null,null,null,0,"-"]
["Waste wood (biomass) ",null,null,null,null,null,0,"-"]
["Refuse Derived Fuel * - H'hold/LA",null,null,null,null,null,{"$f":"SUM(C13:F13)","v":0},"-"]
["Refuse Derived Fuel *  - C&I",null,null,null,null,null,0,"-"]
["Other [Please specify]",null,null,null,null,null,0,"-"]
["Other [Please specify]"]
["Other [Please specify]"]
["Total waste received",null,{"$f":"SUM(C8:C17)","v":63784},{"$f":"SUM(D8:D17)","v":58130},{"$f":"SUM(E8:E17)","v":65396},{"$f":"SUM(F8:F17)","v":59916},{"$f":"SUM(G8:G17)","v":247226},1]
["Rejected Waste ",null,3.28,5.76,2.2999999999999998,0,{"$f":"SUM(C19:F19)","v":11.34},{"$f":"IF(G19>0,G19/$G$18,\"-\")","v":4.5868962002378387E-5}]
["Unprocessed waste transferred out",null,null,null,null,null,{"$f":"SUM(C20:F20)","v":0},{"$f":"IF(G20>0,G20/$G$18,\"-\")","v":"-"}]
["Total waste combusted",null,62508,56967,64088,58718,{"$f":"SUM(C21:F21)","v":242281},{"$f":"IF(G21>0,G21/$G$18,\"-\")","v":0.97999805845663479}]
[]
["Energy Useage / Export","Unit","Q1","Q2","Q3","Q4","Year Total","KWh/te"]
["Power Generated","MWh",47154,41474,48098,42700,{"$f":"SUM(C24:F24)","v":179426},{"$f":"IF(G24>0,G24*1000/$G$21,\"-\")","v":740.56983420078336}]
["Power Exported",null,41923,37015,42637,37936,{"$f":"SUM(C25:F25)","v":159511},{"$f":"IF(G25>0,G25*1000/$G$21,\"-\")","v":658.3718904907937}]
["Power Used on site",null,5162,4585,5031,4587,{"$f":"SUM(C26:F26)","v":19365},{"$f":"IF(G26>0,G26*1000/$G$21,\"-\")","v":79.927852369768985}]
["Power Imported",null,11,496,59,103,669,{"$f":"IF(G27>0,G27*1000/$G$21,\"-\")","v":2.761256557468394}]
["Parasitic Load","%",{"$f":"IF(C24>0,1-C25/(C24+C27),\"-\")","v":0.11114173645711867},{"$f":"IF(D24>0,1-D25/(D24+D27),\"-\")","v":0.11806051941863238},{"$f":"IF(E24>0,1-E25/(E24+E27),\"-\")","v":0.11462508046597586},{"$f":"IF(F24>0,1-F25/(F24+F27),\"-\")","v":0.1137069831553863},{"$f":"IF(G24>0,1-G25/(G24+G27),\"-\")","v":0.11429523307143452}]
["Thermal Energy Produced **","MWh",null,null,null,null,{"$f":"SUM(C29:F29)","v":0},{"$f":"IF(G29>0,G29*1000/$G$21,\"-\")","v":"-"}]
["Thermal Energy Exported **",null,null,null,null,null,0,{"$f":"IF(G30>0,G30*1000/$G$21,\"-\")","v":"-"}]
["R1 value",null,null,null,null,null,"Design / Operational / n/a"]
[]
["Waste Disposal & Recovery","Unit","Q1","Q2","Q3","Q4","Year Total","% inputs"]
["APC Residues - produced","tonnes",1540,1474,1268,1434,{"$f":"SUM(C34:F34)","v":5716},{"$f":"IF(G34>0,G34/$G$21,\"-\")","v":2.3592440183093186E-2}]
["IBA - produced",null,12021,12345,10169,12506,47041,{"$f":"IF(G35>0,G35/$G$21,\"-\")","v":0.19415884860967225}]
["Metals recycling",null,2549,2228,2062,1945,{"$f":"SUM(C36:F36)","v":8784},3.6255422422724025E-2]
["Other",null,0,0,0,0,{"$f":"SUM(C37:F37)","v":0},"-"]
["Other",null,0,0,0,0,0,"-"]
["Other",null,0,0,0,0,0,"-"]
[]
["Raw Material Usage","Unit","Q1","Q2","Q3","Q4","Year Total","kg or Ltr /te"]
["Mains Water","ltrs",5916990,5583110,6254800,5764030,{"$f":"SUM(C42:F42)","v":23518930},{"$f":"IF(G42>0,G42/$G$21,\"-\")","v":97.072944225919485}]
["Other Water","ltrs",null,null,null,null,0,{"$f":"IF(G43>0,G43/$G$21,\"-\")","v":"-"}]
["Ammonia","kgs",38953,45419,52555,45484,182411,0.75289023901998098]
["Urea","kgs",null,null,null,null,{"$f":"SUM(C45:F45)","v":0},"-"]
["Activated Carbon","kgs",42831,32446,35724,38155,{"$f":"SUM(C46:F46)","v":149156},0.61563226171263941]
["Lime / hydrated lime","kgs",475233,465149,386673,328440,1655495,6.8329542968701631]
["Fuel oil","ltrs",107647,129917,95224,100482,433270,1.7882954090498222]
["Gas","cf",0,0,0,0,0]
["Other",null,0,0,0,0,0]
[]
["Summary ","Line/Unit","Q1","Q2","Q3","Q4","Year Total",null,null,"Hrs in year "]
["Availability of waste combustion by line, hrs",1,2078,1873,2160,1964,{"$f":"SUM(C53:F53)","v":8075},{"$f":"G53/8760","v":0.92180365296803657},null,8760]
[null,2,2018,1923,1946,1808,7695,{"$f":"G54/8760","v":0.87842465753424659}]
[null,3]
[null,4]
[null,5]
["Overall Availability, mean avg. of all lines, hrs",null,null,null,null,null,{"$f":"AVERAGE(G53:G54)","v":7885},{"$f":"G58/8760","v":0.90011415525114158}]
["Hours of turbine operations, hrs",1,2153,1812,2158,2110,8233,{"$f":"G59/8760","v":0.93984018264840186}]
["Hours of turbine operations, hrs",2]
["Hours of heat / steam export"]
["Net Calorific Value of waste","MJ/kg",9,9.4,9.6,9.5,9.1999999999999993,"-"]
["Abnormal Events","qty.",2,2,3,4,11,{"$f":"IF(G63>0,\"yes\",\"no\")","v":"yes"}]
["Abnormal operation","hours",2.5,1.5,1.5,2.5,8,{"$f":"+(G64)/J53","v":9.1324200913242006E-4}]
["Permit Breaches","qty.",4,2,0,0,6,{"$f":"IF(G65>0,\"yes\",\"no\")","v":"yes"}]

{"sheet":"Operational Summary","index":4,"n_rows":31,"n_cols":11,"rows_kept":31,"cut":false,"hidden":false,"merged":[[4,0,26,8],[30,0,51,8],[4,10,13,13],[30,10,39,13]]}
[{"$f":"+'Cover Page'!$B$29","v":"Annual Performance Report 2021"},null,null,null,{"$f":"+'Cover Page'!$B$33","v":"Cornwall Energy Recovery Centre"}]
[]
["Summary of Plant Operations and Maintenance during the reporting year",null,null,null,null,null,null,null,null,null,"Notes:"]
[]
["The main annual outage of 2021 took place in April and although there were still Covid restrictions in place we were able to complete all scheduled work. The outage works consisited of the normal grit blasting of all internal furnace tubes, thickness testing and NDT. A large program of equipment overhauls was undertaken including grate and refractory inspections and repairs on both lines. The opportunity was taken to have two further separate line outages in November where the grates were fully overhauled and extensive remedial works were carried out on the baghouse cells and FGT duct walls\n\nOperationally the plant had a good level of reliability, hampered by a tube leak on the bullnose within the furnace of Line 2. During these repairs the opportunity was taken to carry out further offline defect works.\n\nVinci returned to site during the year to undertake major repair works to the roof which had been outstanding since the end of the inital warranty period.",null,null,null,null,null,null,null,null,null,"Include summary of key operational and/or mainteanance activity undertaken in the year, such as any major component upgrades and/or replacements "]
[]
[]
[]
[]
[]
[]
[]
[]
[]
[]
[]
[]
[]
[]
[]
[]
[]
[]
[]
[]
[]
[]
[]
["Summary of Residue Handling for the reporting year"]
[]
["All IBA produced by the incineration process is treated on site at the bottom ash recycling plant operated by Blue Phoenix. The aggregates are separated from the metals with aggregates being sold as a secondary aggregate for use in construction and all metals being recycled. All APCR produced is currently disposed of to hazardous landfill.",null,null,null,null,null,null,null,null,null,"Include in here a summary of residue handling regimes and destinations "]

{"sheet":"Perf. Form 1","index":5,"n_rows":54,"n_cols":10,"rows_kept":54,"cut":false,"hidden":false,"merged":[[9,0,9,9],[10,0,10,1],[10,2,10,3],[10,4,10,5],[10,6,10,7],[10,8,10,9],[2,0,2,4],[2,6,2,8],[3,1,3,4],[5,3,5,4],[5,6,5,7],[8,0,8,1],[8,2,8,3],[8,4,8,5],[8,6,8,7],[8,8,8,9],[11,0,11,1],[11,2,11,3],[11,4,11,5],[11,6,11,7],[11,8,11,9],[12,0,12,1],[12,2,12,3],[12,4,12,5],[12,6,12,7],[12,8,12,9],[15,0,15,1],[15,2,15,3],[15,4,15,5],[15,6,15,7],[15,8,15,9],[16,0,16,9],[13,0,13,1],[13,2,13,3],[13,4,13,5],[13,6,13,7],[13,8,13,9],[14,0,14,3],[14,4,14,5],[14,6,14,7],[14,8,14,9],[17,0,17,1],[17,2,17,3],[17,4,17,5],[17,6,17,7],[17,8,17,9],[18,0,18,1],[18,2,18,3],[18,4,18,5],[18,6,18,7],[18,8,18,9],[19,0,19,1],[19,2,19,3],[19,4,19,5],[19,6,19,7],[19,8,19,9],[20,0,20,1],[20,2,20,3],[20,4,20,5],[20,6,20,7],[20,8,20,9],[21,0,21,1],[21,2,21,3],[21,4,21,5],[21,6,21,7],[21,8,21,9],[22,0,22,3],[22,4,22,5],[22,6,22,7],[22,8,22,9],[31,0,31,3],[31,7,31,8],[32,0,32,3],[32,4,32,5],[32,7,32,8],[33,0,33,3],[33,4,33,5],[33,7,33,8],[23,0,23,3],[23,4,23,5],[23,6,23,7],[23,8,23,9],[25,0,25,9],[26,0,28,9],[36,0,36,3],[36,4,36,5],[36,7,36,8],[37,0,37,3],[37,4,37,5],[37,7,37,8],[34,0,34,3],[34,4,34,5],[34,7,34,8],[35,0,35,3],[35,4,35,5],[35,7,35,8],[47,0,47,1],[49,0,49,9],[50,0,51,9],[38,0,38,9],[39,0,40,9],[43,0,43,1],[43,2,43,9],[45,0,45,1],[46,0,46,1]]}
[{"$f":"+'Cover Page'!C39","v":2021}," Annual Reporting Performance Form 1"]
[]
[{"$f":"+'Cover Page'!B31","v":"Permit EPR/GP3433GH"},null,null,null,null,"Operator: ","SUEZ Recycling and Recovery UK Ltd"]
["Facility:",{"$f":"+'Cover Page'!B33:I33","v":"Cornwall Energy Recovery Centre"},null,null,null,"Form:","Performance 1"]
[]
["Reporting  Period from: ",null,null,"2021-01-01",null,"to:","2021-12-31"]
[]
[{"$f":"+A1","v":2021},"Annual Reporting of Waste Disposal and Recovery"]
["Waste Description",null,"Disposal Route(s)",null,"Disposal Tonnes",null,"Recovery Tonnes",null,"% / tonne of waste incinerated"]
["1) Hazardous Wastes"]
["APC Residues",null,"D05",null,5716,null,null,null,{"$f":"IF((E11+G11)>0,(E11+G11)/'Operational Data'!$G$21, \"-\")","v":2.3592440183093186E-2}]
["IBA",null,null,null,null,null,null,null,{"$f":"IF((E12+G12)>0,(E12+G12)/'Operational Data'!$G$21, \"-\")","v":"-"}]
[null,null,null,null,null,null,null,null,{"$f":"IF((E13+G13)>0,(E13+G13)/'Operational Data'!$G$21, \"-\")","v":"-"}]
[null,null,null,null,null,null,null,null,{"$f":"IF((E14+G14)>0,(E14+G14)/'Operational Data'!$G$21, \"-\")","v":"-"}]
["Total Hazardous Waste",null,null,null,{"$f":"SUM(E11:F14)","v":5716},null,{"$f":"SUM(G11:H14)","v":0},null,{"$f":"IF((E15+G15)>0,(E15+G15)/'Operational Data'!$G$21, \"-\")","v":2.3592440183093186E-2}]
[]
["2) Non-Hazardous Wastes"]
["IBA",null,"R10",null,null,null,47176,null,{"$f":"IF((E18+G18)>0,(E18+G18)/'Operational Data'!$G$21, \"-\")","v":0.19471605284772639}]
["Ferrous Metal",null,null,null,null,null,4589,null,{"$f":"IF((E19+G19)>0,(E19+G19)/'Operational Data'!$G$21, \"-\")","v":1.8940816655041048E-2}]
["Non ferrous metal",null,null,null,null,null,4211,null,{"$f":"IF((E20+G20)>0,(E20+G20)/'Operational Data'!$G$21, \"-\")","v":1.7380644788489399E-2}]
[null,null,null,null,null,null,null,null,{"$f":"IF((E21+G21)>0,(E21+G21)/'Operational Data'!$G$21, \"-\")","v":"-"}]
[null,null,null,null,null,null,null,null,{"$f":"IF((E22+G22)>0,(E22+G22)/'Operational Data'!$G$21, \"-\")","v":"-"}]
["Total Non-Hazardous Waste",null,null,null,{"$f":"SUM(E18:F22)","v":0},null,{"$f":"SUM(G18:H22)","v":55976},null,{"$f":"IF((E23+G23)>0,(E23+G23)/'Operational Data'!$G$21, \"-\")","v":0.23103751429125685}]
["TOTAL WASTE",null,null,null,{"$f":"+E23+E15","v":5716},null,{"$f":"+G23+G15","v":55976},null,{"$f":"IF((E24+G24)>0,(E24+G24)/'Operational Data'!$G$21, \"-\")","v":0.25462995447435005}]
[]
["Operator’s comments :"]
[]
[]
[]
[]
[{"$f":"+A1","v":2021},"Annual Reporting of Water and Other Raw Material Usage"]
["Raw Material",null,null,null,"Usage",null,"Unit","Specific Useage",null,"Unit"]
["Mains Water",null,null,null,{"$f":"+'Operational Data'!G42","v":23518930},null,"m3",{"$f":"IF(E33>0,E33/'Operational Data'!$G$21,\"-\")","v":97.072944225919485},null,"m3/te"]
["Total Water",null,null,null,{"$f":"+'Operational Data'!G43+'Operational Data'!G42","v":23518930},null,"m3",{"$f":"IF(E34>0,E34/'Operational Data'!$G$21,\"-\")","v":97.072944225919485},null,"m3/te"]
["Urea / Ammonia",null,null,null,{"$f":"+'Operational Data'!G44","v":182411},null,"kg",{"$f":"IF(E35>0,E35/'Operational Data'!$G$21,\"-\")","v":0.75289023901998098},null,"kg/te"]
["Activated Carbon",null,null,null,{"$f":"+'Operational Data'!G46","v":149156},null,"kg",{"$f":"IF(E36>0,E36/'Operational Data'!$G$21,\"-\")","v":0.61563226171263941},null,"kg/te"]
["Lime / hydrated lime / Sodium Bicarb.",null,null,null,{"$f":"+'Operational Data'!G47","v":1655495},null,"kg",{"$f":"IF(E37>0,E37/'Operational Data'!$G$21,\"-\")","v":6.8329542968701631},null,"kg/te"]
[]
["Operator’s comments :"]
[]
[]
[]
[{"$f":"+A31","v":2021},"Annual Reporting of other performance indicators "]
["Parameter",null,"Results by Line"]
[null,null,"A1","A2","A3","A4","A5",null,"Turbine 1","Turbine 2"]
["Operating hours for the year, hours",null,7869,8360,null,null,null,null,8141]
["Number of periods of abnormal operation, qty.",null,6,5]
["Cumulative hours of abnormal operation for this year, hours",null,3.5,4.5]
[]
["Operator’s comments :"]
[]
[]
[]
["Signed: ","Richard Watkins",null,null,null,null,"Date:","2022-01-27"]

{"sheet":"Energy Form 1","index":6,"n_rows":29,"n_cols":8,"rows_kept":29,"cut":false,"hidden":false,"merged":[[2,6,2,8],[4,1,4,4],[6,3,6,4],[6,6,6,7],[8,0,8,2],[8,3,8,4],[8,6,8,8],[9,0,9,2],[9,3,9,4],[9,6,9,8],[10,0,10,2],[10,3,10,4],[10,6,10,8],[11,0,11,2],[11,3,11,4],[11,6,11,8],[12,0,12,2],[12,3,12,4],[12,6,12,8],[13,0,13,2],[13,3,13,4],[13,6,13,8],[14,0,14,2],[14,3,14,4],[14,6,14,8],[15,0,15,2],[15,3,15,4],[15,6,15,8],[17,0,17,8],[18,0,24,8]]}
[{"$f":"+'Cover Page'!C39","v":2021}," Annual Reporting of Energy Usage/Export"]
[]
[{"$f":"+'Cover Page'!B31","v":"Permit EPR/GP3433GH"},null,null,null,null,"Operator: ","SUEZ Recycling and Recovery UK Ltd"]
[]
["Facility:",{"$f":"+'Cover Page'!B33:I33","v":"Cornwall Energy Recovery Centre"},null,null,null,"Form:","Energy 1"]
[]
["Reporting  Period from: ",null,null,{"$f":"+'Perf. Form 1'!D6:E6","v":"2021-01-01"},null,"to:",{"$f":"+'Perf. Form 1'!G6:H6","v":"2021-12-31"}]
[]
["Energy Source",null,null,"Energy Usage",null,"Unit","Specific Useage (KWh/tonne incinerated"]
["Electricity Produced",null,null,{"$f":"+'Operational Data'!G24","v":179426},null,"MWh",{"$f":"+'Operational Data'!H24","v":740.56983420078336}]
["Electricity Imported   ",null,null,{"$f":"+'Operational Data'!G27","v":669},null,"MWh",{"$f":"+'Operational Data'!H27","v":2.761256557468394}]
["Electricity Exported",null,null,{"$f":"+'Operational Data'!G25","v":159511},null,"MWh",{"$f":"+'Operational Data'!H25","v":658.3718904907937}]
["Gas Oil",null,null,{"$f":"('Operational Data'!G48/1000)*0.845","v":366.11314999999996},null,"tonnes",{"$f":"D13/'Operational Data'!G21","v":1.5111096206470997E-3}]
["Steam/hot water exported",null,null,{"$f":"+'Operational Data'!G30","v":0},null,"GWh",{"$f":"+'Operational Data'!H30","v":"-"}]
[]
[]
[]
["Operator’s comments :"]
["Density value of 0.845 used to convert gas oil in litres to tonnes"]
[]
[]
[]
[]
[]
[]
[]
[]
[]
["Signed: ","Richard Watkins",null,null,null,null,"Date:","2022-01-27"]

{"sheet":"Permit Compliance","index":7,"n_rows":50,"n_cols":12,"rows_kept":50,"cut":false,"hidden":false,"merged":[[7,0,7,1],[7,2,7,8],[8,0,8,1],[8,2,8,4],[8,5,8,8],[8,11,17,14],[49,4,49,8],[9,0,9,1],[9,2,9,4],[9,5,9,8],[10,0,10,1],[10,2,10,4],[10,5,10,8],[11,0,11,1],[11,2,11,4],[11,5,11,8],[12,0,12,1],[12,2,12,4],[12,5,12,8],[13,0,13,1],[13,2,13,4],[20,4,20,6],[16,2,16,4],[16,5,16,8],[15,2,15,4],[15,5,15,8],[16,0,16,1],[13,5,13,8],[14,0,14,1],[14,2,14,4],[14,5,14,8],[15,0,15,1],[38,1,38,3],[38,4,38,6],[38,7,38,9],[29,7,29,9],[30,1,30,3],[30,4,30,6],[30,7,30,9],[20,1,20,3],[24,4,24,6],[20,7,20,9],[21,1,21,3],[21,4,21,6],[21,7,21,9],[22,1,22,3],[22,4,22,6],[22,7,22,9],[39,1,39,3],[39,4,39,6],[39,7,39,9],[19,1,19,3],[19,4,19,6],[19,7,19,9],[28,1,28,3],[28,4,28,6],[28,7,28,9],[24,7,24,9],[25,1,25,3],[25,4,25,6],[25,7,25,9],[26,1,26,3],[26,4,26,6],[26,7,26,9],[27,1,27,3],[27,4,27,6],[23,1,23,3],[23,4,23,6],[23,7,23,9],[24,1,24,3],[29,1,29,3],[29,4,29,6],[48,1,48,3],[48,4,48,6],[48,7,48,9],[45,1,45,3],[45,4,45,6],[45,7,45,9],[46,1,46,3],[46,4,46,6],[46,7,46,9],[42,0,42,10],[18,0,18,10],[47,1,47,3],[47,4,47,6],[47,7,47,9],[43,1,43,3],[43,4,43,6],[43,7,43,9],[44,1,44,3],[44,4,44,6],[44,7,44,9],[35,1,35,3],[35,4,35,6],[35,7,35,9],[40,1,40,3],[40,4,40,6],[40,7,40,9],[32,1,32,3],[32,4,32,6],[32,7,32,9],[34,1,34,3],[34,4,34,6],[34,7,34,9],[33,1,33,3],[27,7,27,9],[36,1,36,3],[36,4,36,6],[36,7,36,9],[37,1,37,3],[37,4,37,6],[37,7,37,9],[31,1,31,3],[31,4,31,6],[31,7,31,9],[33,4,33,6],[33,7,33,9]]}
[{"$f":"+'Cover Page'!$B$29","v":"Annual Performance Report 2021"},null,null,null,{"$f":"+'Cover Page'!$B$33","v":"Cornwall Energy Recovery Centre"}]
[]
["Summary of Permit Compliance"]
[]
["Compliance with permit limits for continuously monitored pollutants"]
[]
["The plant met its emission limits as shown in the table below:"]
["Substance",null,"Percentage time compliant during operation",null,null,null,null,null,null,null,null,"Notes:"]
[null,null,"Half-hourly limit",null,null,"Daily limit",null,null,null,null,null,"Report to 2 decimal places, i.e. xx.xx%\n\nPlease provide a brief summary of each notification or non-compliance in the table (rather than just referring to notifications that were sent to the Regulator).  \n\n"]
["Particulates",null,1,null,null,1]
["Oxides of nitrogen",null,1,null,null,1]
["Sulphur dioxide",null,1,null,null,1]
["Carbon monoxide",null,0.99980000000000002,null,null,0.99980000000000002]
["Total organic carbon",null,1,null,null,1]
["Hydrogen chloride",null,1,null,null,1]
["Hydrogen fluoride",null,1,null,null,1]
[null,null,{"$f":"AVERAGE(C10:E16)","v":0.99997142857142862},null,null,{"$f":"AVERAGE(F10:I16)","v":0.99997142857142862}]
[]
["Summary of any notifications or non-compliances under the permit"]
["Date","Summary of notification or non-compliance [including Line/Reference]",null,null,"Reason ",null,null,"Measures taken to prevent reoccurrence"]
["2021-03-01","L1 CO 1/2 hourly ELV breach",null,null,"Combustion instability due to fault on steam/water circuit",null,null,"Low level switch in condensate buffer tank replaced"]
["2021-03-08","L1 CO 1/2 hourly ELV breach",null,null,"Combustion instability due to non-conforming waste",null,null,"Waste inspections, permit variation application"]
["2021-04-04","L1 CO 1/2 hourly ELV breach",null,null,"Combustion instability due to fault with furnace temp probe",null,null,"Replace/recalibrate probes"]
[]
["2021-01-12","L2 CO 1/2 hourly ELV breach (x2)",null,null,"Combustion instability and burner failure",null,null,"Combustion control project, weekly burner PM and permit variation"]
["2021-01-14","L2 CO 1/2 hourly ELV breach",null,null,"Combustion instability due to fouled pressure sensor",null,null,"Pressure sensor cleaned, permit variation application"]
["2021-06-30","L2 CO 1/2 hourly ELV breach",null,null,"Combustion instability due to waste crane fault",null,null,"Plant taken offline until crane repairs completed"]
[]
["2021-06-05","L1 Abnormal Operation 30 mins - elevated particulates",null,null,"Failed bag filter",null,null,"Bag filter replaced"]
["2021-09-18","L1 Abnormal Operation 30 mins - elevated particulates",null,null,"Failed bag filter",null,null,"Bag filter replaced"]
["2021-10-06","L1 Abnormal Operation 30 mins - elevated particulates",null,null,"Failed bag filter",null,null,"Bag filter replaced"]
["2021-12-08","L1 Abnormal Operation 30 mins - elevated particulates",null,null,"False analyser reading",null,null,"Service contractor attended site to resolve"]
["2021-11-09","L1 CEMS Comms Fault, data loss 60 mins",null,null,"Software fault",null,null,"Service contractor investigating"]
["2021-12-07","L1 CEMS Comms Fault, data loss 30 mins",null,null,"Software fault",null,null,"Service contractor investigating"]
[]
["2021-02-07","L2 Abnormal Operation 30 mins - elevated particulates",null,null,"Failed bag filter",null,null,"Bag filter replaced"]
["2021-03-25","L2 Abnormal Operation 120 mins - elevated particulates",null,null,"Failed bag filter",null,null,"Bag filter replaced, repairs to BHF completed during annual maintenance outage"]
["2021-06-29","L2 Abnormal Operation 60 mins - elevated particulates",null,null,"Failed bag filter",null,null,"Bag filter replaced, repairs to BHF completed during annual maintenance outage"]
["2021-07-17","L2 Abnormal Operation 30 mins - elevated particulates",null,null,"Failed bag filter",null,null,"Bag filter replaced"]
["2021-08-10","L2 CEMS Comms Fault, data loss 30 mins",null,null,"Software fault",null,null,"Service contractor investigating"]
[]
[]
["Summary of any complaints received and actions to taken to resolve them."]
["Date","Summary of complaint [including Line/Reference]",null,null,"Reason *",null,null,"Measures taken to prevent reoccurrence"]
["2021-01-21","Complaint of continuous high pitched noise from the site received by the Helpdesk. Site staff conducted a walk around the site perimeter and local area to try and identify the noise. The noise was not emanating from the site. Complainant responded to by the Community Liaison Manager.",null,null,"None - not from site",null,null,"None required"]
[]
[]
[]
[]
[null,null,null,null,"* including whether substantiated by the operator or the EA"]

{"sheet":"Improvements","index":8,"n_rows":39,"n_cols":5,"rows_kept":39,"cut":false,"hidden":false,"merged":[[37,0,37,9],[38,0,47,9],[4,0,4,9],[5,0,13,9],[15,0,15,9],[16,0,24,9],[26,0,26,9],[27,0,35,9]]}
[{"$f":"+'Cover Page'!$B$29","v":"Annual Performance Report 2021"},null,null,null,{"$f":"+'Cover Page'!$B$33","v":"Cornwall Energy Recovery Centre"}]
[]
["Summary of Plant Improvements"]
[]
["Summary of any efficiency improvements that have been completed within the year."]
["Shock Pulse Generators have been installed in the 2nd/3rd passes of both lines to assist with the reduction in boiler fouling in these areas."]
[]
[]
[]
[]
[]
[]
[]
[]
[]
["Summary of any permit improvement conditions that have been completed within the year and the resulting environmental benefits."]
[]
[]
[]
[]
[]
[]
[]
[]
[]
[]
["Summary of any changes to the plant or operating techniques which required a variation to the permit and a summary of the resulting environmental impact."]
["A permit variation application was submitted during October 2021 requesting a change to the compliance assessment arrangements for carbon monoxide (CO).\nFollowing the review of our emissions data, we are proposing to change the current emission limit value for CO within Table S4.1 of the permit from 100 mg/m3 (half hourly average) to 150 mg/m3 (95% of all 10-minute averages in any 24 hours period) as permissible by the IED Annex VI, Part 3, paragraph 1.5.\nThe flue gas treatment system relied upon to meet the permit emission limits for most pollutants within the flue gases, does not mitigate CO concentrations. The only control over CO emissions are the combustion conditions which are influenced by the waste properties, grate speed and primary and secondary air flow and temperature. On the occasions that CO concentrations increase they generally do so very rapidly (especially in the case of non-conforming waste, i.e. gas bottles) and under these circumstances neither the automatic control systems or manual intervention by the operator can be carried out sufficiently quickly to prevent exceedances of the current half hourly limit, although emissions are generally back below the limit within a few minutes of the event. We have demonstrated that the combustion control system is able to keep the CO level well below the ELV’s when processing conforming waste.\nAn impact assessment has been provided within the application to demonstrate that the change will not have any adverse environmental impact and that CO emissions will not increase as a result of the change."]
[]
[]
[]
[]
[]
[]
[]
[]
[]
["Summary of any other improvements made to the plant or planned to be made and a summary of the resulting environmental benefits."]
["Modification to the secondary air nozzles and optimisation of the combustion control system is scheduled to take place on one line this year to improve plant stability. If succesful this will be replicated on the other line in 2023. The improvements should see a reduction in fouling of the boilers and also a reduction in CO levels that currently result from the combustion instability."]

{"sheet":"Public Liasion","index":9,"n_rows":29,"n_cols":5,"rows_kept":29,"cut":false,"hidden":false,"merged":[[16,0,16,1],[16,2,16,9],[5,0,5,1],[5,2,5,9],[6,0,7,1],[6,2,7,9],[8,0,9,1],[8,2,9,9],[10,0,11,1],[10,2,11,9],[12,0,13,1],[12,2,13,9],[15,0,15,9],[17,0,18,1],[17,2,18,9],[19,0,20,1],[19,2,20,9],[21,0,22,1],[21,2,22,9],[23,0,24,1],[23,2,24,9],[25,0,26,1],[25,2,26,9],[28,0,28,9]]}
[{"$f":"+'Cover Page'!$B$29","v":"Annual Performance Report 2021"},null,null,null,{"$f":"+'Cover Page'!$B$33","v":"Cornwall Energy Recovery Centre"}]
[]
["Details of Public & Stakeholder Liaison"]
[]
["Summary of events held during the reporting year."]
["Date",null,"Description"]
["March to May 2021",null,"A Virtual Tour was delivered to Falmouth School of Arts in support of a recycling communications project they are working on in Malaysia.  Our Education Team supported Cornwall Council Communications Team with the filming of a short video at our Truro HWRC.  The video was launched in May, 2021. Our Community Liaison Manager attended a Young Enterprise meeting to support Brannel School and is now also working with the Cornwall Council Careers Hub.  The Connon Bridge Liaison Group help an extraordinary meeting on 13th April to allow for any further questions from the community regarding the planned changed to the site. A meeting of the CERC Community Liaison Group took place on 17th May to discuss an operational update and emissions monitoring along with other news updates.  Several Virtual Tours were conducted to primary schools.  The educational video created with Cornwall Council was launched alongside an upcycling competition promoted through our social media channels.  As part of the Kernow KilomEaters - the Resurgence Challenge, Operational staff participated in a fundraising cycle event at the Camel Trail to raise money for Macmillan Cancer Support."]
[]
["June to July 2021",null,"Nine Virtual Tours took place to primary schools and one adult interest group.  SUEZ held a Spring Beach Clean event on 26th June at Harlyn Beach.  SUEZ staff across Cornwall also participated in 'The Big Climb' for Macmillan Cancer Support and the Coast & Clay Sportive for Cornwall Hospice Care."]
[]
["September to October 2021",null,"On 11th September, a joint SUEZ, Biffa and Cornwall Council education event was held at the St. Blazey Recycle, Reuse, Resale CIC Shop.  On 22nd September, SUEZ held an educational event at Callywith College, Bodmin as part of the Cornwall Council 'Step It Up' and Recycling Week Campaign.  In October, A CERC operational update was sent to the CERC Community Liaison Group which included reference to the Environment Agency dispensation, the Annual Report and the planned shutdown for maintenance.  The Education Team answered several enquiries from the public about treatment of dioxins and furans and destinations for Incinerator Bottom Ash.  SUEZ also assisted a local theatre company by providing them with cardboard from Pool MRF for props and scenery for their production.  A number of adult interest groups visited the CERC, including the TEVI group from University of Exeter and Roseland Community Transport Group."]
[]
["November to December 2021",null,"St. Erth Parish Council was approached in November with a view to forming a Community Liaison Group for the planned changes to the St. Erth RTS site.  Education staff delivered an 'Inspiring People' assembly about recycling to St. Columb Primary School.  A BBC Radio Cornwall interview took place at Truro HWRC with Cornwall Council representatives and SUEZ staff.  SUEZ held three litter-pick events at Bodmin Beacon, Long Rock Beach and Crinnis Beach in November.  Several adult interest groups visited CERC in November including Biffa and Cornwall Council Officers, and Cornwall Councillors.  In addition to these visitors, we were very pleased to welcome lots of primary and secondary school groups to the CERC.  In December, Julia Clarke (Chair of CERC CLG) made a visit to meet with the Community Liaison Manager, Lisa Thompson.  SUEZ took part in the 'Festival of Christmas Trees' held at St. Dennis Church.  SUEZ staff also donated fifty one Christmas Boxes (food hampers) to support a local charity who donate these to local families in need via Cornwall Council Social Services."]
[]
[]
["List of events planned for next year"]
["Date",null,"Description"]
["January to March 2022",null,"SUEZ will be hosting the Spring Beach Clean Event (date and venue TBC).  Dragon's Den Event for Young Enterprise (taking place at the end of January).  St. Erth Community Liaison Group to be established in January 2022.    Connon Bridge CLG meeting to take place in Spring (date and venue TBC)."]
[]
["April to June 2022",null,"SUEZ will be represented at the Royal Cornwall Show in June.  CERC Community Liaison Group to hold its annual meeting (date and venue TBC)."]
[]
["July, 2022",null,"SUEZ will be supporting the Coast and Clay Sportive event for Cornwall Hospice Care.  We will be running a feed station for the cyclists who will be participating.  Connon Bridge and St. Erth Community Liaison Group meetings to take place (date and venue TBC)."]
[]
["August to September 2022",null,"Educational Video about CERC to be re-styled to reflect future changes to the SUEZ sites around Cornwall."]
[]
["October to December 2022",null,"SUEZ will be hosting the Autumn Beach Clean event (venue and date TBC).  SUEZ to be represented at the Festival of Christmas Trees event at St. Dennis Church in December. "]
[]
[]
["If you wish to be involved in the public liaison programme, please contact Lisa Thompson lisa.thompson@suez.com"]

{"sheet":"Residue Quality ","index":10,"n_rows":36,"n_cols":6,"rows_kept":36,"cut":false,"hidden":false,"merged":[[16,0,17,1],[16,2,17,6],[18,0,19,1],[18,2,19,6],[12,0,12,6],[13,0,13,1],[13,2,13,6],[5,0,6,6],[7,0,8,6],[9,0,10,6],[14,0,15,1],[14,2,15,6],[20,0,21,1],[20,2,21,6],[22,0,23,1],[22,2,23,6],[31,3,31,4],[27,2,28,2],[28,3,28,4],[28,5,28,6],[27,3,27,6],[26,0,26,6],[35,0,40,6],[32,3,32,4],[34,0,34,6],[27,0,28,1],[29,0,29,1],[30,0,30,1],[31,0,31,1],[32,0,32,1],[29,3,29,4],[30,3,30,4],[29,5,29,6],[30,5,30,6],[31,5,31,6],[32,5,32,6]]}
[{"$f":"+'Cover Page'!$B$29","v":"Annual Performance Report 2021"},null,null,null,{"$f":"+'Cover Page'!$B$33","v":"Cornwall Energy Recovery Centre"}]
[]
["Residue Quality Monitoring Requirements"]
[]
["Summary of monitoring undertaken and compliance"]
["The samples for the quarterly IBA analysis were taken on the 17/02/2021, the 26/05/2021, the 18/08/2021 and the 10/11/2021."]
[]
["There were no issues identified by the analysis and all results for TOC were below the permit limit.\nLOI analysis is not required as TOC analysis is provided."]
[]
[]
[]
[]
["Commentary on any specific events"]
["Date & Event",null,"Description"]
[]
[]
[]
[]
[]
[]
[]
[]
[]
[]
[]
[]
["Residue Quality Monitoring Results"]
["Parameter (unit) ",null,"Limit","Normal Operation "]
[null,null,null,"Bottom ash  ",null,"APC Residues"]
["Loss on Ignition (average %)",null,"<5%","N/A"]
["Total Organic Carbon (average %)",null,"<3%",2.4]
["No. of Assessments Undertaken",null,"---",4,null,4]
["No. of Hazardous Results",null,"---",0]
[]
["Comments :"]
["17/02/2021 TOC - 2.15 %\n26/05/2021 TOC - 2.01 %\n18/08/2021 TOC - 2.76 %\n10/11/2021 TOC - 2.69 %"]

{"sheet":"Water","index":11,"n_rows":23,"n_cols":10,"rows_kept":23,"cut":false,"hidden":false,"merged":[[5,0,6,9],[7,0,8,9],[9,0,10,9],[12,0,12,9],[13,0,13,1],[13,2,13,9],[21,0,21,9],[22,0,22,2],[22,3,22,5],[14,0,15,1],[14,2,15,9],[16,0,17,1],[16,2,17,9],[18,0,19,1],[18,2,19,9],[23,0,23,2],[23,3,23,5],[24,0,24,2],[24,3,24,5],[25,0,25,2],[25,3,25,5],[29,0,29,2],[29,3,29,5],[26,0,26,2],[26,3,26,5],[27,0,27,2],[27,3,27,5],[28,0,28,2],[28,3,28,5]]}
[{"$f":"+'Cover Page'!$B$29","v":"Annual Performance Report 2021"},null,null,null,{"$f":"+'Cover Page'!$B$33","v":"Cornwall Energy Recovery Centre"}]
[]
["Emissions to Water"]
[]
["Summary of monitoring undertaken and compliance"]
[]
[]
[]
[]
[]
[]
[]
["Commentary on any specific events"]
["Date & Event",null,"Description"]
[]
[]
[]
[]
[]
[]
[]
["Emissions to Water / Sewer"]
["Parameter",null,null,"Monitoring Frequency",null,null,"Limit","Target","Max.","Average"]

{"sheet":"Air (periodic)","index":12,"n_rows":40,"n_cols":13,"rows_kept":40,"cut":false,"hidden":false,"merged":[[5,12,8,15],[9,12,11,15],[8,0,8,9],[5,0,6,9],[11,0,11,1],[12,0,12,1],[11,3,11,4],[12,3,12,4],[9,0,10,1],[9,5,9,9],[9,3,10,4],[9,2,10,2],[16,0,16,1],[17,0,17,1],[18,0,18,1],[13,0,13,1],[14,0,14,1],[15,0,15,1],[39,0,40,9],[25,0,25,1],[26,0,26,1],[22,0,22,1],[23,0,23,1],[37,0,37,1],[27,0,27,1],[28,0,28,1],[29,0,29,1],[30,0,30,1],[31,0,31,1],[32,0,32,1],[37,3,37,4],[29,3,29,4],[30,3,30,4],[36,3,36,4],[38,0,38,9],[19,0,19,1],[20,0,20,1],[21,0,21,1],[34,3,34,4],[35,3,35,4],[33,0,33,1],[34,0,34,1],[35,0,35,1],[36,0,36,1],[24,0,24,1],[32,3,32,4],[13,3,13,4],[14,3,14,4],[15,3,15,4],[16,3,16,4],[17,3,17,4],[18,3,18,4],[27,3,27,4],[33,3,33,4],[19,3,19,4],[20,3,20,4],[21,3,21,4],[22,3,22,4],[23,3,23,4],[24,3,24,4],[31,3,31,4],[25,3,25,4],[26,3,26,4],[28,3,28,4]]}
[{"$f":"+'Cover Page'!$B$29","v":"Annual Performance Report 2021"},null,null,null,{"$f":"+'Cover Page'!$B$33","v":"Cornwall Energy Recovery Centre"}]
[]
["Emissions to Air (periodically monitored)"]
[]
["Summary of monitoring undertaken, standards used and compliance",null,null,null,null,null,null,null,null,null,null,null,"Notes:"]
["The periodic emissions testing is carried out bi-annually in accordance with the requirements of the Permit by Element Materials Technology. The scheduled emissions testing visits were carried out during May and November 2021. ",null,null,null,null,null,null,null,null,null,null,null,"Template may require adjustment for any bespoke monitoring requirements of permit. "]
[]
[]
["Results of emissions to air that are periodically monitored"]
["Substance",null,"Ref. Period","Emission Limit Value",null,"Average",null,null,null,null,null,null,"User to add additional tables as necessary, depending on whether quarterly or bi-annual reporting is required for the compliance year"]
[null,null,null,null,null,"A1","A2","A3","A4","A5"]
["Hydrogen fluoride",null,"1 hr","2 mg/m3",null,0.1905,0.19]
["Cd and Th and their compounds",null,"6-8hrs","0.05 mg/m3",null,1.1999999999999999E-3,1E-3]
["Hg and its compounds",null,"6-8hrs","0.05 mg/m3",null,1.1999999999999999E-3,1E-3]
["Sb, As, Pb, Cr, Co, Cu, Mn, Ni, V and their compounds",null,"6-8hrs","0.5 mg/m3",null,4.5499999999999999E-2,6.7500000000000004E-2]
["Dioxins & Furans (I-TEQ)",null,"6-8hrs","0.1 ng/m3",null,3.4499999999999999E-3,2.0999999999999999E-3]
["PCBs (WHO-TEQ Humans / Mammals)",null,"6-8hrs","None set ng/m3",null,1.795E-4,1.6550000000000001E-4]
["PCBs (WHO-TEQ Fish)",null,"6-8hrs","None set ng/m3",null,1.0499999999999999E-5,9.5000000000000005E-6]
["PCBs (WHO-TEQ Birds)",null,"6-8hrs","None set ng/m3",null,9.3999999999999997E-4,6.2100000000000002E-4]
["Dioxins & Furans (WHO-TEQ Humans / Mammals)",null,"6-8hrs","None set ng/m3",null,3.2000000000000002E-3,2.0500000000000002E-3]
["Dioxins & Furans (WHO-TEQ Fish)",null,"6-8hrs","None set ng/m3",null,3.5500000000000002E-3,2.2499999999999998E-3]
["Dioxins & Furans (WHO-TEQ Birds)",null,"6-8hrs","None set ng/m3",null,6.1999999999999998E-3,3.8E-3]
["Anthanthrene",null,"6-8hrs","None set µg/m3",null,1.1999999999999999E-3,1.25E-3]
["Benzo(a)anthracene",null,"6-8hrs","None set µg/m3",null,1.1999999999999999E-3,1.25E-3]
["Benzo(a)pyrene",null,"6-8hrs","None set µg/m3",null,1.1999999999999999E-3,1.25E-3]
["Benzo(b)fluoranthene",null,"6-8hrs","None set µg/m3",null,1.5499999999999999E-3,1.25E-3]
["Benzo(b)naptho(2,1-d) thiophene",null,"6-8hrs","None set µg/m3",null,1.8500000000000001E-3,1.9E-3]
["Benzo(c)phenanthrene",null,"6-8hrs","None set µg/m3",null,1.1999999999999999E-3,1.25E-3]
["Benzo(ghi)perylene",null,"6-8hrs","None set µg/m3",null,1.1999999999999999E-3,1.4499999999999999E-3]
["Benzo(k)fluoranthene",null,"6-8hrs","None set µg/m3",null,1.1999999999999999E-3,1.25E-3]
["Cholanthrene",null,"6-8hrs","None set µg/m3",null,1.1999999999999999E-3,1.25E-3]
["Chrysene",null,"6-8hrs","None set µg/m3",null,2.15E-3,2.3500000000000001E-3]
["Cyclopenta(cd)pyrene",null,"6-8hrs","None set µg/m3",null,1.1999999999999999E-3,2E-3]
["Dibenzo(ai)pyrene",null,"6-8hrs","None set µg/m3",null,1.1999999999999999E-3,1.25E-3]
["Dibenzo(ah)anthracene",null,"6-8hrs","None set µg/m3",null,2.3999999999999998E-3,1.25E-3]
["Fluoranthene",null,"6-8hrs","None set µg/m3",null,2.18E-2,2.87E-2]
["Indeno(123-cd) pyrene",null,"6-8hrs","None set µg/m3",null,1.1999999999999999E-3,1.25E-3]
["Naphthalene",null,"6-8hrs","None set µg/m3",null,0.45215,0.20465]
["Comments :"]
["Where the laboratory result was reported as a Method Detection Limit, the result has been replaced with a value equal to the MDL. Where dioxins/furans have been reported at the MDL the value has been replaced with a value equal to 0.5 times the MDL as per guidance received from the Environment Agency (Ben Freeman).\nThe above mercury results were obtained using the MID 14385 standard. Additional (triplicate) mercury tests were carried out in accordance with the EN 13211 standard on both lines during November 2021. The results are not currently required by the permit and are therefore not included in the above average results for A1 & A2."]

{"sheet":"Air (CEMS)","index":13,"n_rows":30,"n_cols":16,"rows_kept":30,"cut":false,"hidden":false,"merged":[[15,0,16,0],[17,0,18,0],[19,0,20,0],[13,0,14,0],[5,0,6,12],[7,0,8,12],[10,0,10,12],[11,0,12,0],[11,2,12,2],[11,1,12,1],[11,3,11,4],[11,5,11,6],[11,7,11,8],[11,9,11,10],[11,11,11,12],[21,0,22,0],[23,0,24,0],[25,0,26,0],[28,0,28,12],[30,0,31,12]]}
[{"$f":"+'Cover Page'!$B$29","v":"Annual Performance Report 2021"},null,null,null,null,null,null,null,{"$f":"+'Cover Page'!$B$33","v":"Cornwall Energy Recovery Centre"}]
[]
["Emissions to Air (continously monitored)"]
[null,null,null,null,null,null,null,null,null,null,null,null,null,null,null,"Notes:"]
["Summary of monitoring undertaken, standards used and compliance",null,null,null,null,null,null,null,null,null,null,null,null,null,null,"Template may require adjustment for any bespoke monitoring requirements of permit"]
[null,null,null,null,null,null,null,null,null,null,null,null,null,null,null,"Report to 2 decimal places, i.e. xx.xx%"]
[]
[]
[]
[]
["Results of emissions to air that are continuously monitored (maximum and average values for each line)"]
["Substance","Reference Period","Emission Limit Value","A1",null,"A2",null,"A3",null,"A4",null,"A5"]
[null,null,null,"Max.","Avg.","Max.","Avg.","Max.","Avg.","Max.","Avg.","Max.","Avg."]
["Oxides of nitrogen","Daily mean","200 mg/m3 ",{"$f":"NOx!O19","v":147},{"$f":"NOx!N19","v":138.79999999999998},{"$f":"NOx!O34","v":153},{"$f":"NOx!N34","v":141.25000000000003}]
[null,"½ hourly mean","400 mg/m3 ",{"$f":"NOx!M19","v":160},{"$f":"NOx!L19","v":138.79999999999998},{"$f":"NOx!M34","v":194},{"$f":"NOx!L34","v":141.25000000000003}]
["Particulates","Daily mean","10 mg/m3",{"$f":"Particulates!O19","v":5.0999999999999996},{"$f":"Particulates!N19","v":1.875},{"$f":"Particulates!O34","v":5.4},{"$f":"Particulates!N34","v":0.92499999999999993}]
[null,"½ hourly mean","30 mg/m3 ",{"$f":"Particulates!M19","v":82.7},{"$f":"Particulates!L19","v":1.875},{"$f":"Particulates!M34","v":80.900000000000006},{"$f":"Particulates!L34","v":0.92499999999999993}]
["Total Organic Carbon ","Daily mean","10 mg/m3 ",{"$f":"TOC!O19","v":1},{"$f":"TOC!N19","v":0.30833333333333329},{"$f":"TOC!O34","v":2},{"$f":"TOC!N34","v":0.21666666666666665}]
[null,"½ hourly mean","20 mg/m3 ",{"$f":"TOC!M19","v":3.9},{"$f":"TOC!L19","v":0.30833333333333329},{"$f":"TOC!M34","v":4.5},{"$f":"TOC!L34","v":0.21666666666666665}]
["Hydrogen chloride ","Daily mean","10 mg/m3 ",{"$f":"HCl!O19","v":10},{"$f":"HCl!N19","v":6.7416666666666671},{"$f":"HCl!O34","v":10},{"$f":"HCl!N34","v":6.7166666666666659}]
[null,"½ hourly mean","60 mg/m3 ",{"$f":"HCl!M19","v":19},{"$f":"HCl!L19","v":6.7416666666666671},{"$f":"HCl!M34","v":32},{"$f":"HCl!L34","v":6.7166666666666659}]
["Sulphur dioxide","Daily mean","50 mg/m3 ",{"$f":"'SO2'!O19","v":37},{"$f":"'SO2'!N19","v":14},{"$f":"'SO2'!O34","v":37},{"$f":"'SO2'!N34","v":14.25}]
[null,"½ hourly mean","200 mg/m3 ",{"$f":"'SO2'!M19","v":189},{"$f":"'SO2'!L19","v":14},{"$f":"'SO2'!M34","v":109},{"$f":"'SO2'!L34","v":14.25}]
["Carbon monoxide ","Daily mean","50 mg/m3 ",{"$f":"'CO 0.5hourly'!O19","v":10},{"$f":"'CO 0.5hourly'!N19","v":1.25},{"$f":"'CO 0.5hourly'!O34","v":20},{"$f":"'CO 0.5hourly'!N34","v":4.25}]
[null,"½ hourly mean","100 mg/m3",{"$f":"'CO 0.5hourly'!M19","v":119},{"$f":"'CO 0.5hourly'!L19","v":1.25},{"$f":"'CO 0.5hourly'!M34","v":165},{"$f":"'CO 0.5hourly'!L34","v":4.25}]
["Hydrogen Fluoride","Daily mean","1 mg/m3 ",{"$f":"HF!O19","v":0},{"$f":"HF!N19","v":0},{"$f":"HF!O34","v":0.7},{"$f":"HF!N34","v":0}]
[null,"½ hourly mean","4 mg/m3",{"$f":"HF!M19","v":0.7},{"$f":"HF!L19","v":0},{"$f":"HF!M34","v":1},{"$f":"HF!L34","v":0}]
[" Ammonia","Daily mean","10 mg/m3 ",{"$f":"'NH3'!O19","v":1},{"$f":"'NH3'!N19","v":4.9999999999999996E-2},{"$f":"'NH3'!O34","v":1.7},{"$f":"'NH3'!N34","v":0.11666666666666668}]
["* = delete or amend as appropriate"]
["Comments :"]

{"sheet":"HCl","index":14,"n_rows":79,"n_cols":17,"rows_kept":79,"cut":false,"hidden":false,"merged":[[12,16,15,18],[51,9,63,9],[66,9,78,9],[4,9,4,14],[4,1,4,3],[4,4,4,6],[48,0,51,6],[47,0,47,6],[6,9,18,9],[21,9,33,9],[36,9,48,9],[3,16,7,18],[9,16,11,18]]}
[{"$f":"+'Cover Page'!$B$29","v":"Annual Performance Report 2021"},null,null,null,{"$f":"+'Cover Page'!$B$33","v":"Cornwall Energy Recovery Centre"}]
[]
["Monitoring of Hydrogen Chloride emissions",null,null,"Whole Installation",null,null,"See  Notes in Cell Q3",null,null,{"$f":"+A3","v":"Monitoring of Hydrogen Chloride emissions"},null,null,null,"Per Combustion Line",null,null,"Notes:"]
[null,null,null,null,null,null,null,null,null,null,null,null,null,null,null,null,"User to add logic to complete Whole installation, Table A5:G18. From the data in Per Combustion Line, Table J6:O79, subject to No. of lines installed"]
["mg/Nm3","1/2 Hourly Reference Periods",null,null,"Daily Reference Periods"]
[{"$f":"+'Cover Page'!C39","v":2021},"1/2 hourly HCl ELV","Monthly 1/2 hourly mean","Highest 1/2 hourly maximum","Daily HCl ELV","Monthly daily mean","Highest daily maximum",null,null,{"$f":"+A6","v":2021},"mg/Nm3","Monthly 1/2 hourly mean","Monthly 1/2 hourly maximum","Monthly daily mean","Monthly daily maximum"]
["Jan",60,{"$f":"AVERAGE(L7,L22)","v":6},{"$f":"MAX(M7,M22)","v":16},10,{"$f":"AVERAGE(N7,N22)","v":6},{"$f":"MAX(O7,O22)","v":6},null,null,"A1","Jan",6,11,6,6]
["Feb",60,{"$f":"AVERAGE(L8,L23)","v":6},{"$f":"MAX(M8,M23)","v":14},10,{"$f":"AVERAGE(N8,N23)","v":6},{"$f":"MAX(O8,O23)","v":7},null,null,null,"Feb",6,13,6,6]
["Mar",60,{"$f":"AVERAGE(L9,L24)","v":6},14,10,6,7,null,null,null,"Mar",6,11,6,7,null,"Whole Installation table A5:G18:"]
["Apr",60,6.35,17.600000000000001,10,6.35,9.6,null,null,null,"Apr",6.1,8.8000000000000007,6.1,6.4,null,"Mean: for 1/2 hourly and daily periods calculate mean of values across all operational combustion lines for the month"]
["May",60,4.9000000000000004,8.9,10,4.9000000000000004,6.3,null,null,null,"May",5.8,8.9,5.8,6.3]
["Jun",60,6,11,10,6,6,null,null,null,"Jun",6,9,6,6]
["Jul",60,6,24,10,6,7,null,null,null,"Jul",6,13,6,6,null,"Maximum: for 1/2 hourly and daily periods use the highest value across all operational combustion lines for the month"]
["Aug",60,6,19,10,6,7,null,null,null,"Aug",6,19,6,7]
["Sep",60,9,14,10,9,10,null,null,null,"Sep",9,14,9,10]
["Oct",60,9,19,10,9,10,null,null,null,"Oct",9,19,9,10]
["Nov",60,8,32,10,8,10,null,null,null,"Nov",8,12,8,10]
["Dec",60,7.5,12,10,7.5,10,null,null,null,"Dec",7,12,7,10]
[null,null,null,null,null,null,null,null,null,null,"Annual",{"$f":"AVERAGE(L7:L18)","v":6.7416666666666671},{"$f":"MAX(M7:M18)","v":19},{"$f":"AVERAGE(N7:N18)","v":6.7416666666666671},{"$f":"MAX(O7:O18)","v":10}]
[]
[null,null,null,null,null,null,null,null,null,{"$f":"+A6","v":2021},"mg/Nm3","Monthly 1/2 hourly mean","Monthly 1/2 hourly maximum","Monthly daily mean","Monthly daily maximum"]
[null,null,null,null,null,null,null,null,null,"A2","Jan",6,16,6,6]
[null,null,null,null,null,null,null,null,null,null,"Feb",6,14,6,7]
[null,null,null,null,null,null,null,null,null,null,"Mar",6,14,6,7]
[null,null,null,null,null,null,null,null,null,null,"Apr",6.6,17.600000000000001,6.6,9.6]
[null,null,null,null,null,null,null,null,null,null,"May",4,8,4,5]
[null,null,null,null,null,null,null,null,null,null,"Jun",6,11,6,6]
[null,null,null,null,null,null,null,null,null,null,"Jul",6,24,6,7]
[null,null,null,null,null,null,null,null,null,null,"Aug",6,11,6,6]
[null,null,null,null,null,null,null,null,null,null,"Sep",9,14,9,10]
[null,null,null,null,null,null,null,null,null,null,"Oct",9,13,9,10]
[null,null,null,null,null,null,null,null,null,null,"Nov",8,32,8,10]
[null,null,null,null,null,null,null,null,null,null,"Dec",8,12,8,10]
[null,null,null,null,null,null,null,null,null,null,"Annual",{"$f":"AVERAGE(L22:L33)","v":6.7166666666666659},{"$f":"MAX(M22:M33)","v":32},{"$f":"AVERAGE(N22:N33)","v":6.7166666666666659},{"$f":"MAX(O22:O33)","v":10}]
[]
[null,null,null,null,null,null,null,null,null,{"$f":"+A6","v":2021},"mg/Nm3","Monthly 1/2 hourly mean","Monthly 1/2 hourly maximum","Monthly daily mean","Monthly daily maximum"]
[null,null,null,null,null,null,null,null,null,"A3","Jan"]
[null,null,null,null,null,null,null,null,null,null,"Feb"]
[null,null,null,null,null,null,null,null,null,null,"Mar"]
[null,null,null,null,null,null,null,null,null,null,"Apr"]
[null,null,null,null,null,null,null,null,null,null,"May"]
[null,null,null,null,null,null,null,null,null,null,"Jun"]
[null,null,null,null,null,null,null,null,null,null,"Jul"]
[null,null,null,null,null,null,null,null,null,null,"Aug"]
[null,null,null,null,null,null,null,null,null,null,"Sep"]
[null,null,null,null,null,null,null,null,null,null,"Oct"]
[null,null,null,null,null,null,null,null,null,null,"Nov"]
["Comments :",null,null,null,null,null,null,null,null,null,"Dec"]
[null,null,null,null,null,null,null,null,null,null,"Annual",{"$f":"AVERAGE(L37:L48)","v":{"$error":"#DIV/0!"}},{"$f":"MAX(M37:M48)","v":0},{"$f":"AVERAGE(N37:N48)","v":{"$error":"#DIV/0!"}},{"$f":"MAX(O37:O48)","v":0}]
[]
[null,null,null,null,null,null,null,null,null,{"$f":"+A6","v":2021},"mg/Nm3","Monthly 1/2 hourly mean","Monthly 1/2 hourly maximum","Monthly daily mean","Monthly daily maximum"]
[null,null,null,null,null,null,null,null,null,"A4","Jan"]
[null,null,null,null,null,null,null,null,null,null,"Feb"]
[null,null,null,null,null,null,null,null,null,null,"Mar"]
[null,null,null,null,null,null,null,null,null,null,"Apr"]
[null,null,null,null,null,null,null,null,null,null,"May"]
[null,null,null,null,null,null,null,null,null,null,"Jun"]
[null,null,null,null,null,null,null,null,null,null,"Jul"]
[null,null,null,null,null,null,null,null,null,null,"Aug"]
[null,null,null,null,null,null,null,null,null,null,"Sep"]
[null,null,null,null,null,null,null,null,null,null,"Oct"]
[null,null,null,null,null,null,null,null,null,null,"Nov"]
[null,null,null,null,null,null,null,null,null,null,"Dec"]
[null,null,null,null,null,null,null,null,null,null,"Annual",{"$f":"AVERAGE(L52:L63)","v":{"$error":"#DIV/0!"}},{"$f":"MAX(M52:M63)","v":0},{"$f":"AVERAGE(N52:N63)","v":{"$error":"#DIV/0!"}},{"$f":"MAX(O52:O63)","v":0}]
[]
[null,null,null,null,null,null,null,null,null,{"$f":"+A6","v":2021},"mg/Nm3","Monthly 1/2 hourly mean","Monthly 1/2 hourly maximum","Monthly daily mean","Monthly daily maximum"]
[null,null,null,null,null,null,null,null,null,"A5","Jan"]
[null,null,null,null,null,null,null,null,null,null,"Feb"]
[null,null,null,null,null,null,null,null,null,null,"Mar"]
[null,null,null,null,null,null,null,null,null,null,"Apr"]
[null,null,null,null,null,null,null,null,null,null,"May"]
[null,null,null,null,null,null,null,null,null,null,"Jun"]
[null,null,null,null,null,null,null,null,null,null,"Jul"]
[null,null,null,null,null,null,null,null,null,null,"Aug"]
[null,null,null,null,null,null,null,null,null,null,"Sep"]
[null,null,null,null,null,null,null,null,null,null,"Oct"]
[null,null,null,null,null,null,null,null,null,null,"Nov"]
[null,null,null,null,null,null,null,null,null,null,"Dec"]
[null,null,null,null,null,null,null,null,null,null,"Annual",{"$f":"AVERAGE(L67:L78)","v":{"$error":"#DIV/0!"}},{"$f":"MAX(M67:M78)","v":0},{"$f":"AVERAGE(N67:N78)","v":{"$error":"#DIV/0!"}},{"$f":"MAX(O67:O78)","v":0}]

{"sheet":"SO2","index":15,"n_rows":79,"n_cols":17,"rows_kept":79,"cut":false,"hidden":false,"merged":[[3,16,7,18],[9,16,11,18],[12,16,15,18],[66,9,78,9],[4,1,4,3],[4,4,4,6],[4,9,4,14],[6,9,18,9],[21,9,33,9],[36,9,48,9],[47,0,47,6],[48,0,51,6],[51,9,63,9]]}
[{"$f":"+'Cover Page'!$B$29","v":"Annual Performance Report 2021"},null,null,null,{"$f":"+'Cover Page'!$B$33","v":"Cornwall Energy Recovery Centre"}]
[]
["Monitoring of Sulphur dioxide emissions",null,null,"Whole Installation",null,null,"See  Notes in Cell Q3",null,null,{"$f":"+A3","v":"Monitoring of Sulphur dioxide emissions"},null,null,null,"Per Combustion Line",null,null,"Notes:"]
[null,null,null,null,null,null,null,null,null,null,null,null,null,null,null,null,"User to add logic to complete Whole installation, Table A5:G18. From the data in Per Combustion Line, Table J6:O79, subject to No. of lines installed"]
["mg/Nm3","1/2 Hourly Reference Periods",null,null,"Daily Reference Periods"]
[{"$f":"+'Cover Page'!C39","v":2021},"1/2 hourly SO2 ELV","Monthly 1/2 hourly mean","Highest 1/2 hourly maximum","Daily SO2 ELV","Monthly daily mean","Highest daily maximum",null,null,{"$f":"+A6","v":2021},"mg/Nm3","Monthly 1/2 hourly mean","Monthly 1/2 hourly maximum","Monthly daily mean","Monthly daily maximum"]
["Jan",200,{"$f":"AVERAGE(L7,L22)","v":14},{"$f":"MAX(M7,M22)","v":46},50,{"$f":"AVERAGE(N7,N22)","v":14},{"$f":"MAX(O7,O22)","v":25},null,null,"A1","Jan",15,46,15,25]
["Feb",200,{"$f":"AVERAGE(L8,L23)","v":15},{"$f":"MAX(M8,M23)","v":189},50,{"$f":"AVERAGE(N8,N23)","v":15},{"$f":"MAX(O8,O23)","v":33},null,null,null,"Feb",16,189,16,33]
["Mar",200,11.5,59,50,11.5,22,null,null,null,"Mar",9,44,9,15,null,"Whole Installation table A5:G18:"]
["Apr",200,10.5,49,50,10.5,37,null,null,null,"Apr",12,49,12,37,null,"Mean: for 1/2 hourly and daily periods calculate mean of values across all operational combustion lines for the month"]
["May",200,19,49,50,19,37,null,null,null,"May",19,44,19,37]
["Jun",200,12.5,75,50,12.5,19,null,null,null,"Jun",12,60,12,16]
["Jul",200,14.5,53,50,14.5,20,null,null,null,"Jul",12,53,12,15,null,"Maximum: for 1/2 hourly and daily periods use the highest value across all operational combustion lines for the month"]
["Aug",200,13.5,62,50,13.5,19,null,null,null,"Aug",13,62,13,17]
["Sep",200,13.5,35,50,13.5,18,null,null,null,"Sep",13,24,13,16]
["Oct",200,14.5,52,50,14.5,17,null,null,null,"Oct",15,52,15,17]
["Nov",200,14,31,50,14,17,null,null,null,"Nov",15,26,15,17]
["Dec",200,17,55,50,17,19,null,null,null,"Dec",17,55,17,19]
[null,null,null,null,null,null,null,null,null,null,"Annual",{"$f":"AVERAGE(L7:L18)","v":14},{"$f":"MAX(M7:M18)","v":189},{"$f":"AVERAGE(N7:N18)","v":14},{"$f":"MAX(O7:O18)","v":37}]
[]
[null,null,null,null,null,null,null,null,null,{"$f":"+A6","v":2021},"mg/Nm3","Monthly 1/2 hourly mean","Monthly 1/2 hourly maximum","Monthly daily mean","Monthly daily maximum"]
[null,null,null,null,null,null,null,null,null,"A2","Jan",13,43,13,25]
[null,null,null,null,null,null,null,null,null,null,"Feb",14,109,14,23]
[null,null,null,null,null,null,null,null,null,null,"Mar",14,59,14,22]
[null,null,null,null,null,null,null,null,null,null,"Apr",9,26,9,19]
[null,null,null,null,null,null,null,null,null,null,"May",19,49,19,37]
[null,null,null,null,null,null,null,null,null,null,"Jun",13,75,13,19]
[null,null,null,null,null,null,null,null,null,null,"Jul",17,52,17,20]
[null,null,null,null,null,null,null,null,null,null,"Aug",14,27,14,19]
[null,null,null,null,null,null,null,null,null,null,"Sep",14,35,14,18]
[null,null,null,null,null,null,null,null,null,null,"Oct",14,32,14,17]
[null,null,null,null,null,null,null,null,null,null,"Nov",13,31,13,17]
[null,null,null,null,null,null,null,null,null,null,"Dec",17,44,17,19]
[null,null,null,null,null,null,null,null,null,null,"Annual",{"$f":"AVERAGE(L22:L33)","v":14.25},{"$f":"MAX(M22:M33)","v":109},{"$f":"AVERAGE(N22:N33)","v":14.25},{"$f":"MAX(O22:O33)","v":37}]
[]
[null,null,null,null,null,null,null,null,null,{"$f":"+A6","v":2021},"mg/Nm3","Monthly 1/2 hourly mean","Monthly 1/2 hourly maximum","Monthly daily mean","Monthly daily maximum"]
[null,null,null,null,null,null,null,null,null,"A3","Jan"]
[null,null,null,null,null,null,null,null,null,null,"Feb"]
[null,null,null,null,null,null,null,null,null,null,"Mar"]
[null,null,null,null,null,null,null,null,null,null,"Apr"]
[null,null,null,null,null,null,null,null,null,null,"May"]
[null,null,null,null,null,null,null,null,null,null,"Jun"]
[null,null,null,null,null,null,null,null,null,null,"Jul"]
[null,null,null,null,null,null,null,null,null,null,"Aug"]
[null,null,null,null,null,null,null,null,null,null,"Sep"]
[null,null,null,null,null,null,null,null,null,null,"Oct"]
[null,null,null,null,null,null,null,null,null,null,"Nov"]
["Comments :",null,null,null,null,null,null,null,null,null,"Dec"]
[null,null,null,null,null,null,null,null,null,null,"Annual",{"$f":"AVERAGE(L37:L48)","v":{"$error":"#DIV/0!"}},{"$f":"MAX(M37:M48)","v":0},{"$f":"AVERAGE(N37:N48)","v":{"$error":"#DIV/0!"}},{"$f":"MAX(O37:O48)","v":0}]
[]
[null,null,null,null,null,null,null,null,null,{"$f":"+A6","v":2021},"mg/Nm3","Monthly 1/2 hourly mean","Monthly 1/2 hourly maximum","Monthly daily mean","Monthly daily maximum"]
[null,null,null,null,null,null,null,null,null,"A4","Jan"]
[null,null,null,null,null,null,null,null,null,null,"Feb"]
[null,null,null,null,null,null,null,null,null,null,"Mar"]
[null,null,null,null,null,null,null,null,null,null,"Apr"]
[null,null,null,null,null,null,null,null,null,null,"May"]
[null,null,null,null,null,null,null,null,null,null,"Jun"]
[null,null,null,null,null,null,null,null,null,null,"Jul"]
[null,null,null,null,null,null,null,null,null,null,"Aug"]
[null,null,null,null,null,null,null,null,null,null,"Sep"]
[null,null,null,null,null,null,null,null,null,null,"Oct"]
[null,null,null,null,null,null,null,null,null,null,"Nov"]
[null,null,null,null,null,null,null,null,null,null,"Dec"]
[null,null,null,null,null,null,null,null,null,null,"Annual",{"$f":"AVERAGE(L52:L63)","v":{"$error":"#DIV/0!"}},{"$f":"MAX(M52:M63)","v":0},{"$f":"AVERAGE(N52:N63)","v":{"$error":"#DIV/0!"}},{"$f":"MAX(O52:O63)","v":0}]
[]
[null,null,null,null,null,null,null,null,null,{"$f":"+A6","v":2021},"mg/Nm3","Monthly 1/2 hourly mean","Monthly 1/2 hourly maximum","Monthly daily mean","Monthly daily maximum"]
[null,null,null,null,null,null,null,null,null,"A5","Jan"]
[null,null,null,null,null,null,null,null,null,null,"Feb"]
[null,null,null,null,null,null,null,null,null,null,"Mar"]
[null,null,null,null,null,null,null,null,null,null,"Apr"]
[null,null,null,null,null,null,null,null,null,null,"May"]
[null,null,null,null,null,null,null,null,null,null,"Jun"]
[null,null,null,null,null,null,null,null,null,null,"Jul"]
[null,null,null,null,null,null,null,null,null,null,"Aug"]
[null,null,null,null,null,null,null,null,null,null,"Sep"]
[null,null,null,null,null,null,null,null,null,null,"Oct"]
[null,null,null,null,null,null,null,null,null,null,"Nov"]
[null,null,null,null,null,null,null,null,null,null,"Dec"]
[null,null,null,null,null,null,null,null,null,null,"Annual",{"$f":"AVERAGE(L67:L78)","v":{"$error":"#DIV/0!"}},{"$f":"MAX(M67:M78)","v":0},{"$f":"AVERAGE(N67:N78)","v":{"$error":"#DIV/0!"}},{"$f":"MAX(O67:O78)","v":0}]

{"sheet":"NOx","index":16,"n_rows":79,"n_cols":17,"rows_kept":79,"cut":false,"hidden":false,"merged":[[3,16,7,18],[9,16,11,18],[12,16,15,18],[66,9,78,9],[4,1,4,3],[4,4,4,6],[4,9,4,14],[6,9,18,9],[21,9,33,9],[36,9,48,9],[47,0,47,6],[48,0,51,6],[51,9,63,9]]}
[{"$f":"+'Cover Page'!$B$29","v":"Annual Performance Report 2021"},null,null,null,{"$f":"+'Cover Page'!$B$33","v":"Cornwall Energy Recovery Centre"}]
[]
["Monitoring of Oxides of Nitrogen emissions",null,null,"Whole Installation",null,null,"See  Notes in Cell Q3",null,null,{"$f":"+A3","v":"Monitoring of Oxides of Nitrogen emissions"},null,null,null,"Per Combustion Line",null,null,"Notes:"]
[null,null,null,null,null,null,null,null,null,null,null,null,null,null,null,null,"User to add logic to complete Whole installation, Table A5:G18. From the data in Per Combustion Line, Table J6:O79, subject to No. of lines installed"]
["mg/Nm3","1/2 Hourly Reference Periods",null,null,"Daily Reference Periods"]
[{"$f":"+'Cover Page'!C39","v":2021},"1/2 hourly NOx ELV","Monthly 1/2 hourly mean","Highest 1/2 hourly maximum","Daily NOx ELV","Monthly daily mean","Highest daily maximum",null,null,{"$f":"+A6","v":2021},"mg/Nm3","Monthly 1/2 hourly mean","Monthly 1/2 hourly maximum","Monthly daily mean","Monthly daily maximum"]
["Jan",400,{"$f":"AVERAGE(L7,L22)","v":139.35},{"$f":"MAX(M7,M22)","v":160},200,{"$f":"AVERAGE(N7,N22)","v":139.35},{"$f":"MAX(O7,O22)","v":145},null,null,"A1","Jan",141.19999999999999,160,141.19999999999999,145]
["Feb",400,{"$f":"AVERAGE(L8,L23)","v":139.94999999999999},{"$f":"MAX(M8,M23)","v":160},200,{"$f":"AVERAGE(N8,N23)","v":139.94999999999999},{"$f":"MAX(O8,O23)","v":147},null,null,null,"Feb",141.6,160,141.6,147]
["Mar",400,135.65,157,200,135.65,144,null,null,null,"Mar",135.80000000000001,157,135.80000000000001,144,null,"Whole Installation table A5:G18:"]
["Apr",400,131.35000000000002,158,200,131.35000000000002,144,null,null,null,"Apr",134.30000000000001,156,134.30000000000001,144,null,"Mean: for 1/2 hourly and daily periods calculate mean of values across all operational combustion lines for the month"]
["May",400,143.19999999999999,160,200,143.19999999999999,148,null,null,null,"May",142.19999999999999,156,142.19999999999999,146]
["Jun",400,142.64999999999998,161,200,142.64999999999998,147,null,null,null,"Jun",141.19999999999999,156,141.19999999999999,146]
["Jul",400,142.35000000000002,168,200,142.35000000000002,150,null,null,null,"Jul",138.30000000000001,156,138.30000000000001,143,null,"Maximum: for 1/2 hourly and daily periods use the highest value across all operational combustion lines for the month"]
["Aug",400,141.80000000000001,194,200,141.80000000000001,151,null,null,null,"Aug",138.6,153,138.6,142]
["Sep",400,141.94999999999999,190,200,141.94999999999999,153,null,null,null,"Sep",139,157,139,142]
["Oct",400,141.75,160,200,141.75,147,null,null,null,"Oct",139.1,156,139.1,144]
["Nov",400,140.30000000000001,158,200,140.30000000000001,148,null,null,null,"Nov",137.80000000000001,156,137.80000000000001,143]
["Dec",400,140,160,200,140,148,null,null,null,"Dec",136.5,157,136.5,146]
[null,null,null,null,null,null,null,null,null,null,"Annual",{"$f":"AVERAGE(L7:L18)","v":138.79999999999998},{"$f":"MAX(M7:M18)","v":160},{"$f":"AVERAGE(N7:N18)","v":138.79999999999998},{"$f":"MAX(O7:O18)","v":147}]
[]
[null,null,null,null,null,null,null,null,null,{"$f":"+A6","v":2021},"mg/Nm3","Monthly 1/2 hourly mean","Monthly 1/2 hourly maximum","Monthly daily mean","Monthly daily maximum"]
[null,null,null,null,null,null,null,null,null,"A2","Jan",137.5,160,137.5,143]
[null,null,null,null,null,null,null,null,null,null,"Feb",138.30000000000001,155,138.30000000000001,143]
[null,null,null,null,null,null,null,null,null,null,"Mar",135.5,154,135.5,144]
[null,null,null,null,null,null,null,null,null,null,"Apr",128.4,158,128.4,142]
[null,null,null,null,null,null,null,null,null,null,"May",144.19999999999999,160,144.19999999999999,148]
[null,null,null,null,null,null,null,null,null,null,"Jun",144.1,161,144.1,147]
[null,null,null,null,null,null,null,null,null,null,"Jul",146.4,168,146.4,150]
[null,null,null,null,null,null,null,null,null,null,"Aug",145,194,145,151]
[null,null,null,null,null,null,null,null,null,null,"Sep",144.9,190,144.9,153]
[null,null,null,null,null,null,null,null,null,null,"Oct",144.4,160,144.4,147]
[null,null,null,null,null,null,null,null,null,null,"Nov",142.80000000000001,158,142.80000000000001,148]
[null,null,null,null,null,null,null,null,null,null,"Dec",143.5,160,143.5,148]
[null,null,null,null,null,null,null,null,null,null,"Annual",{"$f":"AVERAGE(L22:L33)","v":141.25000000000003},{"$f":"MAX(M22:M33)","v":194},{"$f":"AVERAGE(N22:N33)","v":141.25000000000003},{"$f":"MAX(O22:O33)","v":153}]
[]
[null,null,null,null,null,null,null,null,null,{"$f":"+A6","v":2021},"mg/Nm3","Monthly 1/2 hourly mean","Monthly 1/2 hourly maximum","Monthly daily mean","Monthly daily maximum"]
[null,null,null,null,null,null,null,null,null,"A3","Jan"]
[null,null,null,null,null,null,null,null,null,null,"Feb"]
[null,null,null,null,null,null,null,null,null,null,"Mar"]
[null,null,null,null,null,null,null,null,null,null,"Apr"]
[null,null,null,null,null,null,null,null,null,null,"May"]
[null,null,null,null,null,null,null,null,null,null,"Jun"]
[null,null,null,null,null,null,null,null,null,null,"Jul"]
[null,null,null,null,null,null,null,null,null,null,"Aug"]
[null,null,null,null,null,null,null,null,null,null,"Sep"]
[null,null,null,null,null,null,null,null,null,null,"Oct"]
[null,null,null,null,null,null,null,null,null,null,"Nov"]
["Comments :",null,null,null,null,null,null,null,null,null,"Dec"]
[null,null,null,null,null,null,null,null,null,null,"Annual",{"$f":"AVERAGE(L37:L48)","v":{"$error":"#DIV/0!"}},{"$f":"MAX(M37:M48)","v":0},{"$f":"AVERAGE(N37:N48)","v":{"$error":"#DIV/0!"}},{"$f":"MAX(O37:O48)","v":0}]
[]
[null,null,null,null,null,null,null,null,null,{"$f":"+A6","v":2021},"mg/Nm3","Monthly 1/2 hourly mean","Monthly 1/2 hourly maximum","Monthly daily mean","Monthly daily maximum"]
[null,null,null,null,null,null,null,null,null,"A4","Jan"]
[null,null,null,null,null,null,null,null,null,null,"Feb"]
[null,null,null,null,null,null,null,null,null,null,"Mar"]
[null,null,null,null,null,null,null,null,null,null,"Apr"]
[null,null,null,null,null,null,null,null,null,null,"May"]
[null,null,null,null,null,null,null,null,null,null,"Jun"]
[null,null,null,null,null,null,null,null,null,null,"Jul"]
[null,null,null,null,null,null,null,null,null,null,"Aug"]
[null,null,null,null,null,null,null,null,null,null,"Sep"]
[null,null,null,null,null,null,null,null,null,null,"Oct"]
[null,null,null,null,null,null,null,null,null,null,"Nov"]
[null,null,null,null,null,null,null,null,null,null,"Dec"]
[null,null,null,null,null,null,null,null,null,null,"Annual",{"$f":"AVERAGE(L52:L63)","v":{"$error":"#DIV/0!"}},{"$f":"MAX(M52:M63)","v":0},{"$f":"AVERAGE(N52:N63)","v":{"$error":"#DIV/0!"}},{"$f":"MAX(O52:O63)","v":0}]
[]
[null,null,null,null,null,null,null,null,null,{"$f":"+A6","v":2021},"mg/Nm3","Monthly 1/2 hourly mean","Monthly 1/2 hourly maximum","Monthly daily mean","Monthly daily maximum"]
[null,null,null,null,null,null,null,null,null,"A5","Jan"]
[null,null,null,null,null,null,null,null,null,null,"Feb"]
[null,null,null,null,null,null,null,null,null,null,"Mar"]
[null,null,null,null,null,null,null,null,null,null,"Apr"]
[null,null,null,null,null,null,null,null,null,null,"May"]
[null,null,null,null,null,null,null,null,null,null,"Jun"]
[null,null,null,null,null,null,null,null,null,null,"Jul"]
[null,null,null,null,null,null,null,null,null,null,"Aug"]
[null,null,null,null,null,null,null,null,null,null,"Sep"]
[null,null,null,null,null,null,null,null,null,null,"Oct"]
[null,null,null,null,null,null,null,null,null,null,"Nov"]
[null,null,null,null,null,null,null,null,null,null,"Dec"]
[null,null,null,null,null,null,null,null,null,null,"Annual",{"$f":"AVERAGE(L67:L78)","v":{"$error":"#DIV/0!"}},{"$f":"MAX(M67:M78)","v":0},{"$f":"AVERAGE(N67:N78)","v":{"$error":"#DIV/0!"}},{"$f":"MAX(O67:O78)","v":0}]

{"sheet":"TOC","index":17,"n_rows":79,"n_cols":17,"rows_kept":79,"cut":false,"hidden":false,"merged":[[3,16,7,18],[9,16,11,18],[12,16,15,18],[66,9,78,9],[4,1,4,3],[4,4,4,6],[4,9,4,14],[6,9,18,9],[21,9,33,9],[36,9,48,9],[47,0,47,6],[48,0,51,6],[51,9,63,9]]}
[{"$f":"+'Cover Page'!$B$29","v":"Annual Performance Report 2021"},null,null,null,{"$f":"+'Cover Page'!$B$33","v":"Cornwall Energy Recovery Centre"}]
[]
["Monitoring of Total organic carbon emissions",null,null,"Whole Installation",null,null,"See  Notes in Cell Q3",null,null,{"$f":"+A3","v":"Monitoring of Total organic carbon emissions"},null,null,null,"Per Combustion Line",null,null,"Notes:"]
[null,null,null,null,null,null,null,null,null,null,null,null,null,null,null,null,"User to add logic to complete Whole installation, Table A5:G18. From the data in Per Combustion Line, Table J6:O79, subject to No. of lines installed"]
["mg/Nm3","1/2 Hourly Reference Periods",null,null,"Daily Reference Periods"]
[{"$f":"+'Cover Page'!C39","v":2021},"1/2 hourly TOC ELV","Monthly 1/2 hourly mean","Highest 1/2 hourly maximum","Daily TOC ELV","Monthly daily mean","Highest daily maximum",null,null,{"$f":"+A6","v":2021},"mg/Nm3","Monthly 1/2 hourly mean","Monthly 1/2 hourly maximum","Monthly daily mean","Monthly daily maximum"]
["Jan",20,{"$f":"AVERAGE(L7,L22)","v":0.3},{"$f":"MAX(M7,M22)","v":4.5},10,{"$f":"AVERAGE(N7,N22)","v":0.3},{"$f":"MAX(O7,O22)","v":0.7},null,null,"A1","Jan",0.3,2.2000000000000002,0.3,0.6]
["Feb",20,{"$f":"AVERAGE(L8,L23)","v":0.25},{"$f":"MAX(M8,M23)","v":3.9},10,{"$f":"AVERAGE(N8,N23)","v":0.25},{"$f":"MAX(O8,O23)","v":0.8},null,null,null,"Feb",0.3,3.9,0.3,0.6]
["Mar",20,0.25,2.6,10,0.25,0.5,null,null,null,"Mar",0.3,2.5,0.3,0.5,null,"Whole Installation table A5:G18:"]
["Apr",20,0.25,3.2,10,0.25,0.8,null,null,null,"Apr",0.3,3.2,0.3,0.8,null,"Mean: for 1/2 hourly and daily periods calculate mean of values across all operational combustion lines for the month"]
["May",20,0.15,3,10,0.15,2,null,null,null,"May",0.3,2.2999999999999998,0.3,0.4]
["Jun",20,0.3,2.9,10,0.3,0.5,null,null,null,"Jun",0.3,1.9,0.3,0.4]
["Jul",20,0.25,2.4,10,0.25,0.5,null,null,null,"Jul",0.3,1.7,0.3,0.5,null,"Maximum: for 1/2 hourly and daily periods use the highest value across all operational combustion lines for the month"]
["Aug",20,0.30000000000000004,2.1,10,0.30000000000000004,0.6,null,null,null,"Aug",0.4,1.9,0.4,0.5]
["Sep",20,0.4,2.7,10,0.4,0.7,null,null,null,"Sep",0.4,2.6,0.4,0.7]
["Oct",20,0.35,3.4,10,0.35,0.6,null,null,null,"Oct",0.4,1.8,0.4,0.6]
["Nov",20,0,2,10,0,1,null,null,null,"Nov",0,2,0,1]
["Dec",20,0.35,1.4,10,0.35,0.5,null,null,null,"Dec",0.4,0.9,0.4,0.4]
[null,null,null,null,null,null,null,null,null,null,"Annual",{"$f":"AVERAGE(L7:L18)","v":0.30833333333333329},{"$f":"MAX(M7:M18)","v":3.9},{"$f":"AVERAGE(N7:N18)","v":0.30833333333333329},{"$f":"MAX(O7:O18)","v":1}]
[]
[null,null,null,null,null,null,null,null,null,{"$f":"+A6","v":2021},"mg/Nm3","Monthly 1/2 hourly mean","Monthly 1/2 hourly maximum","Monthly daily mean","Monthly daily maximum"]
[null,null,null,null,null,null,null,null,null,"A2","Jan",0.3,4.5,0.3,0.7]
[null,null,null,null,null,null,null,null,null,null,"Feb",0.2,3.1,0.2,0.8]
[null,null,null,null,null,null,null,null,null,null,"Mar",0.2,2.6,0.2,0.4]
[null,null,null,null,null,null,null,null,null,null,"Apr",0.2,2.6,0.2,0.6]
[null,null,null,null,null,null,null,null,null,null,"May",0,3,0,2]
[null,null,null,null,null,null,null,null,null,null,"Jun",0.3,2.9,0.3,0.5]
[null,null,null,null,null,null,null,null,null,null,"Jul",0.2,2.4,0.2,0.5]
[null,null,null,null,null,null,null,null,null,null,"Aug",0.2,2.1,0.2,0.6]
[null,null,null,null,null,null,null,null,null,null,"Sep",0.4,2.7,0.4,0.4]
[null,null,null,null,null,null,null,null,null,null,"Oct",0.3,3.4,0.3,0.6]
[null,null,null,null,null,null,null,null,null,null,"Nov",0,1,0,0]
[null,null,null,null,null,null,null,null,null,null,"Dec",0.3,1.4,0.3,0.5]
[null,null,null,null,null,null,null,null,null,null,"Annual",{"$f":"AVERAGE(L22:L33)","v":0.21666666666666665},{"$f":"MAX(M22:M33)","v":4.5},{"$f":"AVERAGE(N22:N33)","v":0.21666666666666665},{"$f":"MAX(O22:O33)","v":2}]
[]
[null,null,null,null,null,null,null,null,null,{"$f":"+A6","v":2021},"mg/Nm3","Monthly 1/2 hourly mean","Monthly 1/2 hourly maximum","Monthly daily mean","Monthly daily maximum"]
[null,null,null,null,null,null,null,null,null,"A3","Jan"]
[null,null,null,null,null,null,null,null,null,null,"Feb"]
[null,null,null,null,null,null,null,null,null,null,"Mar"]
[null,null,null,null,null,null,null,null,null,null,"Apr"]
[null,null,null,null,null,null,null,null,null,null,"May"]
[null,null,null,null,null,null,null,null,null,null,"Jun"]
[null,null,null,null,null,null,null,null,null,null,"Jul"]
[null,null,null,null,null,null,null,null,null,null,"Aug"]
[null,null,null,null,null,null,null,null,null,null,"Sep"]
[null,null,null,null,null,null,null,null,null,null,"Oct"]
[null,null,null,null,null,null,null,null,null,null,"Nov"]
["Comments :",null,null,null,null,null,null,null,null,null,"Dec"]
[null,null,null,null,null,null,null,null,null,null,"Annual",{"$f":"AVERAGE(L37:L48)","v":{"$error":"#DIV/0!"}},{"$f":"MAX(M37:M48)","v":0},{"$f":"AVERAGE(N37:N48)","v":{"$error":"#DIV/0!"}},{"$f":"MAX(O37:O48)","v":0}]
[]
[null,null,null,null,null,null,null,null,null,{"$f":"+A6","v":2021},"mg/Nm3","Monthly 1/2 hourly mean","Monthly 1/2 hourly maximum","Monthly daily mean","Monthly daily maximum"]
[null,null,null,null,null,null,null,null,null,"A4","Jan"]
[null,null,null,null,null,null,null,null,null,null,"Feb"]
[null,null,null,null,null,null,null,null,null,null,"Mar"]
[null,null,null,null,null,null,null,null,null,null,"Apr"]
[null,null,null,null,null,null,null,null,null,null,"May"]
[null,null,null,null,null,null,null,null,null,null,"Jun"]
[null,null,null,null,null,null,null,null,null,null,"Jul"]
[null,null,null,null,null,null,null,null,null,null,"Aug"]
[null,null,null,null,null,null,null,null,null,null,"Sep"]
[null,null,null,null,null,null,null,null,null,null,"Oct"]
[null,null,null,null,null,null,null,null,null,null,"Nov"]
[null,null,null,null,null,null,null,null,null,null,"Dec"]
[null,null,null,null,null,null,null,null,null,null,"Annual",{"$f":"AVERAGE(L52:L63)","v":{"$error":"#DIV/0!"}},{"$f":"MAX(M52:M63)","v":0},{"$f":"AVERAGE(N52:N63)","v":{"$error":"#DIV/0!"}},{"$f":"MAX(O52:O63)","v":0}]
[]
[null,null,null,null,null,null,null,null,null,{"$f":"+A6","v":2021},"mg/Nm3","Monthly 1/2 hourly mean","Monthly 1/2 hourly maximum","Monthly daily mean","Monthly daily maximum"]
[null,null,null,null,null,null,null,null,null,"A5","Jan"]
[null,null,null,null,null,null,null,null,null,null,"Feb"]
[null,null,null,null,null,null,null,null,null,null,"Mar"]
[null,null,null,null,null,null,null,null,null,null,"Apr"]
[null,null,null,null,null,null,null,null,null,null,"May"]
[null,null,null,null,null,null,null,null,null,null,"Jun"]
[null,null,null,null,null,null,null,null,null,null,"Jul"]
[null,null,null,null,null,null,null,null,null,null,"Aug"]
[null,null,null,null,null,null,null,null,null,null,"Sep"]
[null,null,null,null,null,null,null,null,null,null,"Oct"]
[null,null,null,null,null,null,null,null,null,null,"Nov"]
[null,null,null,null,null,null,null,null,null,null,"Dec"]
[null,null,null,null,null,null,null,null,null,null,"Annual",{"$f":"AVERAGE(L67:L78)","v":{"$error":"#DIV/0!"}},{"$f":"MAX(M67:M78)","v":0},{"$f":"AVERAGE(N67:N78)","v":{"$error":"#DIV/0!"}},{"$f":"MAX(O67:O78)","v":0}]

{"sheet":"Particulates","index":18,"n_rows":79,"n_cols":17,"rows_kept":79,"cut":false,"hidden":false,"merged":[[3,16,7,18],[9,16,11,18],[12,16,15,18],[66,9,78,9],[4,1,4,3],[4,4,4,6],[4,9,4,14],[6,9,18,9],[21,9,33,9],[36,9,48,9],[47,0,47,6],[48,0,51,6],[51,9,63,9]]}
[{"$f":"+'Cover Page'!$B$29","v":"Annual Performance Report 2021"},null,null,null,{"$f":"+'Cover Page'!$B$33","v":"Cornwall Energy Recovery Centre"}]
[]
["Monitoring of Particulate matter emissions",null,null,"Whole Installation",null,null,"See  Notes in Cell Q3",null,null,{"$f":"+A3","v":"Monitoring of Particulate matter emissions"},null,null,null,"Per Combustion Line",null,null,"Notes:"]
[null,null,null,null,null,null,null,null,null,null,null,null,null,null,null,null,"User to add logic to complete Whole installation, Table A5:G18. From the data in Per Combustion Line, Table J6:O79, subject to No. of lines installed"]
["mg/Nm3","1/2 Hourly Reference Periods",null,null,"Daily Reference Periods"]
[{"$f":"+'Cover Page'!C39","v":2021},"1/2 hourly PM ELV","Monthly 1/2 hourly mean","Highest 1/2 hourly maximum","Daily PM ELV","Monthly daily mean","Highest daily maximum",null,null,{"$f":"+A6","v":2021},"mg/Nm3","Monthly 1/2 hourly mean","Monthly 1/2 hourly maximum","Monthly daily mean","Monthly daily maximum"]
["Jan",30,{"$f":"AVERAGE(L7,L22)","v":0.64999999999999991},{"$f":"MAX(M7,M22)","v":1},10,{"$f":"AVERAGE(N7,N22)","v":0.64999999999999991},{"$f":"MAX(O7,O22)","v":0.8},null,null,"A1","Jan",0.7,1,0.7,0.8]
["Feb",30,{"$f":"AVERAGE(L8,L23)","v":0.7},{"$f":"MAX(M8,M23)","v":52.4},10,{"$f":"AVERAGE(N8,N23)","v":0.7},{"$f":"MAX(O8,O23)","v":2.2000000000000002},null,null,null,"Feb",0.7,1.1000000000000001,0.7,0.9]
["Mar",30,0.75,80.900000000000006,10,0.75,5.4,null,null,null,"Mar",0.8,5.7,0.8,1,null,"Whole Installation table A5:G18:"]
["Apr",30,0.7,10,10,0.7,1.7,null,null,null,"Apr",0.9,2.4,0.9,1.7,null,"Mean: for 1/2 hourly and daily periods calculate mean of values across all operational combustion lines for the month"]
["May",30,1.75,28.8,10,1.75,3.7,null,null,null,"May",2.5,28.8,2.5,3.7]
["Jun",30,1.8,82.7,10,1.8,4.4000000000000004,null,null,null,"Jun",2.7,82.7,2.7,4.4000000000000004]
["Jul",30,1.4500000000000002,47.1,10,1.4500000000000002,3.7,null,null,null,"Jul",2.1,47.1,2.1,3.7,null,"Maximum: for 1/2 hourly and daily periods use the highest value across all operational combustion lines for the month"]
["Aug",30,2.2999999999999998,17,10,2.2999999999999998,5.0999999999999996,null,null,null,"Aug",3,17,3,5.0999999999999996]
["Sep",30,1.8499999999999999,54.9,10,1.8499999999999999,4.3,null,null,null,"Sep",2.2999999999999998,54.9,2.2999999999999998,4.3]
["Oct",30,2.1,75,10,2.1,4.5,null,null,null,"Oct",3,75,3,4.5]
["Nov",30,2,10,10,2,4,null,null,null,"Nov",3,10,3,4]
["Dec",30,0.75,34.4,10,0.75,1.6,null,null,null,"Dec",0.8,34.4,0.8,1.6]
[null,null,null,null,null,null,null,null,null,null,"Annual",{"$f":"AVERAGE(L7:L18)","v":1.875},{"$f":"MAX(M7:M18)","v":82.7},{"$f":"AVERAGE(N7:N18)","v":1.875},{"$f":"MAX(O7:O18)","v":5.0999999999999996}]
[]
[null,null,null,null,null,null,null,null,null,{"$f":"+A6","v":2021},"mg/Nm3","Monthly 1/2 hourly mean","Monthly 1/2 hourly maximum","Monthly daily mean","Monthly daily maximum"]
[null,null,null,null,null,null,null,null,null,"A2","Jan",0.6,1,0.6,0.7]
[null,null,null,null,null,null,null,null,null,null,"Feb",0.7,52.4,0.7,2.2000000000000002]
[null,null,null,null,null,null,null,null,null,null,"Mar",0.7,80.900000000000006,0.7,5.4]
[null,null,null,null,null,null,null,null,null,null,"Apr",0.5,10,0.5,0.8]
[null,null,null,null,null,null,null,null,null,null,"May",1,5,1,1]
[null,null,null,null,null,null,null,null,null,null,"Jun",0.9,26,0.9,1.8]
[null,null,null,null,null,null,null,null,null,null,"Jul",0.8,3.8,0.8,1.1000000000000001]
[null,null,null,null,null,null,null,null,null,null,"Aug",1.6,8.3000000000000007,1.6,4]
[null,null,null,null,null,null,null,null,null,null,"Sep",1.4,29.8,1.4,3.8]
[null,null,null,null,null,null,null,null,null,null,"Oct",1.2,4.4000000000000004,1.2,1.5]
[null,null,null,null,null,null,null,null,null,null,"Nov",1,4,1,2]
[null,null,null,null,null,null,null,null,null,null,"Dec",0.7,2.7,0.7,1.3]
[null,null,null,null,null,null,null,null,null,null,"Annual",{"$f":"AVERAGE(L22:L33)","v":0.92499999999999993},{"$f":"MAX(M22:M33)","v":80.900000000000006},{"$f":"AVERAGE(N22:N33)","v":0.92499999999999993},{"$f":"MAX(O22:O33)","v":5.4}]
[]
[null,null,null,null,null,null,null,null,null,{"$f":"+A6","v":2021},"mg/Nm3","Monthly 1/2 hourly mean","Monthly 1/2 hourly maximum","Monthly daily mean","Monthly daily maximum"]
[null,null,null,null,null,null,null,null,null,"A3","Jan"]
[null,null,null,null,null,null,null,null,null,null,"Feb"]
[null,null,null,null,null,null,null,null,null,null,"Mar"]
[null,null,null,null,null,null,null,null,null,null,"Apr"]
[null,null,null,null,null,null,null,null,null,null,"May"]
[null,null,null,null,null,null,null,null,null,null,"Jun"]
[null,null,null,null,null,null,null,null,null,null,"Jul"]
[null,null,null,null,null,null,null,null,null,null,"Aug"]
[null,null,null,null,null,null,null,null,null,null,"Sep"]
[null,null,null,null,null,null,null,null,null,null,"Oct"]
[null,null,null,null,null,null,null,null,null,null,"Nov"]
["Comments :",null,null,null,null,null,null,null,null,null,"Dec"]
[null,null,null,null,null,null,null,null,null,null,"Annual",{"$f":"AVERAGE(L37:L48)","v":{"$error":"#DIV/0!"}},{"$f":"MAX(M37:M48)","v":0},{"$f":"AVERAGE(N37:N48)","v":{"$error":"#DIV/0!"}},{"$f":"MAX(O37:O48)","v":0}]
[]
[null,null,null,null,null,null,null,null,null,{"$f":"+A6","v":2021},"mg/Nm3","Monthly 1/2 hourly mean","Monthly 1/2 hourly maximum","Monthly daily mean","Monthly daily maximum"]
[null,null,null,null,null,null,null,null,null,"A4","Jan"]
[null,null,null,null,null,null,null,null,null,null,"Feb"]
[null,null,null,null,null,null,null,null,null,null,"Mar"]
[null,null,null,null,null,null,null,null,null,null,"Apr"]
[null,null,null,null,null,null,null,null,null,null,"May"]
[null,null,null,null,null,null,null,null,null,null,"Jun"]
[null,null,null,null,null,null,null,null,null,null,"Jul"]
[null,null,null,null,null,null,null,null,null,null,"Aug"]
[null,null,null,null,null,null,null,null,null,null,"Sep"]
[null,null,null,null,null,null,null,null,null,null,"Oct"]
[null,null,null,null,null,null,null,null,null,null,"Nov"]
[null,null,null,null,null,null,null,null,null,null,"Dec"]
[null,null,null,null,null,null,null,null,null,null,"Annual",{"$f":"AVERAGE(L52:L63)","v":{"$error":"#DIV/0!"}},{"$f":"MAX(M52:M63)","v":0},{"$f":"AVERAGE(N52:N63)","v":{"$error":"#DIV/0!"}},{"$f":"MAX(O52:O63)","v":0}]
[]
[null,null,null,null,null,null,null,null,null,{"$f":"+A6","v":2021},"mg/Nm3","Monthly 1/2 hourly mean","Monthly 1/2 hourly maximum","Monthly daily mean","Monthly daily maximum"]
[null,null,null,null,null,null,null,null,null,"A5","Jan"]
[null,null,null,null,null,null,null,null,null,null,"Feb"]
[null,null,null,null,null,null,null,null,null,null,"Mar"]
[null,null,null,null,null,null,null,null,null,null,"Apr"]
[null,null,null,null,null,null,null,null,null,null,"May"]
[null,null,null,null,null,null,null,null,null,null,"Jun"]
[null,null,null,null,null,null,null,null,null,null,"Jul"]
[null,null,null,null,null,null,null,null,null,null,"Aug"]
[null,null,null,null,null,null,null,null,null,null,"Sep"]
[null,null,null,null,null,null,null,null,null,null,"Oct"]
[null,null,null,null,null,null,null,null,null,null,"Nov"]
[null,null,null,null,null,null,null,null,null,null,"Dec"]
[null,null,null,null,null,null,null,null,null,null,"Annual",{"$f":"AVERAGE(L67:L78)","v":{"$error":"#DIV/0!"}},{"$f":"MAX(M67:M78)","v":0},{"$f":"AVERAGE(N67:N78)","v":{"$error":"#DIV/0!"}},{"$f":"MAX(O67:O78)","v":0}]

{"sheet":"CO 0.5hourly","index":19,"n_rows":79,"n_cols":17,"rows_kept":79,"cut":false,"hidden":false,"merged":[[3,16,7,18],[9,16,11,18],[12,16,15,18],[66,9,78,9],[4,1,4,3],[4,4,4,6],[4,9,4,14],[6,9,18,9],[21,9,33,9],[36,9,48,9],[47,0,47,6],[48,0,51,6],[51,9,63,9]]}
[{"$f":"+'Cover Page'!$B$29","v":"Annual Performance Report 2021"},null,null,null,{"$f":"+'Cover Page'!$B$33","v":"Cornwall Energy Recovery Centre"}]
[]
["Monitoring of Carbon Monoxide (half hourly)",null,null,"Whole Installation",null,null,"See  Notes in Cell Q3",null,null,{"$f":"+A3","v":"Monitoring of Carbon Monoxide (half hourly)"},null,null,null,"Per Combustion Line",null,null,"Notes:"]
[null,null,null,null,null,null,null,null,null,null,null,null,null,null,null,null,"User to add logic to complete Whole installation, Table A5:G18. From the data in Per Combustion Line, Table J6:O79, subject to No. of lines installed"]
["mg/Nm3","1/2 Hourly Reference Periods",null,null,"Daily Reference Periods"]
[{"$f":"+'Cover Page'!C39","v":2021},"1/2 hourly CO ELV","Monthly 1/2 hourly mean","Highest 1/2 hourly maximum","Daily CO ELV","Monthly daily mean","Highest daily maximum",null,null,{"$f":"+A6","v":2021},"mg/Nm3","Monthly 1/2 hourly mean","Monthly 1/2 hourly maximum","Monthly daily mean","Monthly daily maximum"]
["Jan",100,{"$f":"AVERAGE(L7,L22)","v":6.5},{"$f":"MAX(M7,M22)","v":142},50,{"$f":"AVERAGE(N7,N22)","v":6.5},{"$f":"MAX(O7,O22)","v":20},null,null,"A1","Jan",4,55,4,10]
["Feb",{"$f":"+B7","v":100},{"$f":"AVERAGE(L8,L23)","v":6},{"$f":"MAX(M8,M23)","v":98},{"$f":"+E7","v":50},{"$f":"AVERAGE(N8,N23)","v":6},{"$f":"MAX(O8,O23)","v":10},null,null,null,"Feb",4,98,4,8]
["Mar",{"$f":"+B8","v":100},5,113,{"$f":"+E8","v":50},5,10,null,null,null,"Mar",4,113,4,10,null,"Whole Installation table A5:G18:"]
["Apr",100,3,119,50,3,17,null,null,null,"Apr",1,119,1,8,null,"Mean: for 1/2 hourly and daily periods calculate mean of values across all operational combustion lines for the month"]
["May",100,2,115,50,2,8,null,null,null,"May",0,79,0,8]
["Jun",100,2.5,165,50,2.5,11,null,null,null,"Jun",0,45,0,1]
["Jul",100,1.5,30,50,1.5,6,null,null,null,"Jul",0,30,0,6,null,"Maximum: for 1/2 hourly and daily periods use the highest value across all operational combustion lines for the month"]
["Aug",100,1,58,50,1,5,null,null,null,"Aug",0,27,0,0]
["Sep",100,1,74,50,1,4,null,null,null,"Sep",0,74,0,2]
["Oct",100,1,70,50,1,6,null,null,null,"Oct",0,26,0,1]
["Nov",100,1,16,50,1,4,null,null,null,"Nov",0,16,0,2]
["Dec",100,2.5,27,50,2.5,7,null,null,null,"Dec",2,27,2,4]
[null,null,null,null,null,null,null,null,null,null,"Annual",{"$f":"AVERAGE(L7:L18)","v":1.25},{"$f":"MAX(M7:M18)","v":119},{"$f":"AVERAGE(N7:N18)","v":1.25},{"$f":"MAX(O7:O18)","v":10}]
[]
[null,null,null,null,null,null,null,null,null,{"$f":"+A6","v":2021},"mg/Nm3","Monthly 1/2 hourly mean","Monthly 1/2 hourly maximum","Monthly daily mean","Monthly daily maximum"]
[null,null,null,null,null,null,null,null,null,"A2","Jan",9,142,9,20]
[null,null,null,null,null,null,null,null,null,null,"Feb",8,47,8,10]
[null,null,null,null,null,null,null,null,null,null,"Mar",6,68,6,10]
[null,null,null,null,null,null,null,null,null,null,"Apr",5,88,5,17]
[null,null,null,null,null,null,null,null,null,null,"May",4,115,4,8]
[null,null,null,null,null,null,null,null,null,null,"Jun",5,165,5,11]
[null,null,null,null,null,null,null,null,null,null,"Jul",3,28,3,6]
[null,null,null,null,null,null,null,null,null,null,"Aug",2,58,2,5]
[null,null,null,null,null,null,null,null,null,null,"Sep",2,51,2,4]
[null,null,null,null,null,null,null,null,null,null,"Oct",2,70,2,6]
[null,null,null,null,null,null,null,null,null,null,"Nov",2,8,2,4]
[null,null,null,null,null,null,null,null,null,null,"Dec",3,16,3,7]
[null,null,null,null,null,null,null,null,null,null,"Annual",{"$f":"AVERAGE(L22:L33)","v":4.25},{"$f":"MAX(M22:M33)","v":165},{"$f":"AVERAGE(N22:N33)","v":4.25},{"$f":"MAX(O22:O33)","v":20}]
[]
[null,null,null,null,null,null,null,null,null,{"$f":"+A6","v":2021},"mg/Nm3","Monthly 1/2 hourly mean","Monthly 1/2 hourly maximum","Monthly daily mean","Monthly daily maximum"]
[null,null,null,null,null,null,null,null,null,"A3","Jan"]
[null,null,null,null,null,null,null,null,null,null,"Feb"]
[null,null,null,null,null,null,null,null,null,null,"Mar"]
[null,null,null,null,null,null,null,null,null,null,"Apr"]
[null,null,null,null,null,null,null,null,null,null,"May"]
[null,null,null,null,null,null,null,null,null,null,"Jun"]
[null,null,null,null,null,null,null,null,null,null,"Jul"]
[null,null,null,null,null,null,null,null,null,null,"Aug"]
[null,null,null,null,null,null,null,null,null,null,"Sep"]
[null,null,null,null,null,null,null,null,null,null,"Oct"]
[null,null,null,null,null,null,null,null,null,null,"Nov"]
["Comments :",null,null,null,null,null,null,null,null,null,"Dec"]
[null,null,null,null,null,null,null,null,null,null,"Annual",{"$f":"AVERAGE(L37:L48)","v":{"$error":"#DIV/0!"}},{"$f":"MAX(M37:M48)","v":0},{"$f":"AVERAGE(N37:N48)","v":{"$error":"#DIV/0!"}},{"$f":"MAX(O37:O48)","v":0}]
[]
[null,null,null,null,null,null,null,null,null,{"$f":"+A6","v":2021},"mg/Nm3","Monthly 1/2 hourly mean","Monthly 1/2 hourly maximum","Monthly daily mean","Monthly daily maximum"]
[null,null,null,null,null,null,null,null,null,"A4","Jan"]
[null,null,null,null,null,null,null,null,null,null,"Feb"]
[null,null,null,null,null,null,null,null,null,null,"Mar"]
[null,null,null,null,null,null,null,null,null,null,"Apr"]
[null,null,null,null,null,null,null,null,null,null,"May"]
[null,null,null,null,null,null,null,null,null,null,"Jun"]
[null,null,null,null,null,null,null,null,null,null,"Jul"]
[null,null,null,null,null,null,null,null,null,null,"Aug"]
[null,null,null,null,null,null,null,null,null,null,"Sep"]
[null,null,null,null,null,null,null,null,null,null,"Oct"]
[null,null,null,null,null,null,null,null,null,null,"Nov"]
[null,null,null,null,null,null,null,null,null,null,"Dec"]
[null,null,null,null,null,null,null,null,null,null,"Annual",{"$f":"AVERAGE(L52:L63)","v":{"$error":"#DIV/0!"}},{"$f":"MAX(M52:M63)","v":0},{"$f":"AVERAGE(N52:N63)","v":{"$error":"#DIV/0!"}},{"$f":"MAX(O52:O63)","v":0}]
[]
[null,null,null,null,null,null,null,null,null,{"$f":"+A6","v":2021},"mg/Nm3","Monthly 1/2 hourly mean","Monthly 1/2 hourly maximum","Monthly daily mean","Monthly daily maximum"]
[null,null,null,null,null,null,null,null,null,"A5","Jan"]
[null,null,null,null,null,null,null,null,null,null,"Feb"]
[null,null,null,null,null,null,null,null,null,null,"Mar"]
[null,null,null,null,null,null,null,null,null,null,"Apr"]
[null,null,null,null,null,null,null,null,null,null,"May"]
[null,null,null,null,null,null,null,null,null,null,"Jun"]
[null,null,null,null,null,null,null,null,null,null,"Jul"]
[null,null,null,null,null,null,null,null,null,null,"Aug"]
[null,null,null,null,null,null,null,null,null,null,"Sep"]
[null,null,null,null,null,null,null,null,null,null,"Oct"]
[null,null,null,null,null,null,null,null,null,null,"Nov"]
[null,null,null,null,null,null,null,null,null,null,"Dec"]
[null,null,null,null,null,null,null,null,null,null,"Annual",{"$f":"AVERAGE(L67:L78)","v":{"$error":"#DIV/0!"}},{"$f":"MAX(M67:M78)","v":0},{"$f":"AVERAGE(N67:N78)","v":{"$error":"#DIV/0!"}},{"$f":"MAX(O67:O78)","v":0}]

{"sheet":"HF","index":20,"n_rows":79,"n_cols":17,"rows_kept":79,"cut":false,"hidden":false,"merged":[[66,9,78,9],[3,16,7,18],[4,1,4,3],[4,4,4,6],[4,9,4,14],[6,9,18,9],[9,16,11,18],[12,16,15,18],[21,9,33,9],[36,9,48,9],[47,0,47,6],[48,0,51,6],[51,9,63,9]]}
[{"$f":"+'Cover Page'!$B$29","v":"Annual Performance Report 2021"},null,null,null,{"$f":"+'Cover Page'!$B$33","v":"Cornwall Energy Recovery Centre"}]
[]
["Monitoring of Hydrogen Fluoride (half hourly)",null,null,"Whole Installation",null,null,"See  Notes in Cell Q3",null,null,{"$f":"+A3","v":"Monitoring of Hydrogen Fluoride (half hourly)"},null,null,null,"Per Combustion Line",null,null,"Notes:"]
[null,null,null,null,null,null,null,null,null,null,null,null,null,null,null,null,"User to add logic to complete Whole installation, Table A5:G18. From the data in Per Combustion Line, Table J6:O79, subject to No. of lines installed"]
["mg/Nm3","1/2 Hourly Reference Periods",null,null,"Daily Reference Periods"]
[{"$f":"+'Cover Page'!C39","v":2021},"1/2 hourly CO ELV","Monthly 1/2 hourly mean","Highest 1/2 hourly maximum","Daily CO ELV","Monthly daily mean","Highest daily maximum",null,null,{"$f":"+A6","v":2021},"mg/Nm3","Monthly 1/2 hourly mean","Monthly 1/2 hourly maximum","Monthly daily mean","Monthly daily maximum"]
["Jan",4,{"$f":"AVERAGE(L7,L22)","v":0},{"$f":"MAX(M7,M22)","v":0},1,{"$f":"AVERAGE(N7,N22)","v":0},{"$f":"MAX(O7,O22)","v":0},null,null,"A1","Jan",0,0,0,0]
["Feb",4,{"$f":"AVERAGE(L8,L23)","v":0},{"$f":"MAX(M8,M23)","v":0},{"$f":"+E7","v":1},{"$f":"AVERAGE(N8,N23)","v":0},{"$f":"MAX(O8,O23)","v":0},null,null,null,"Feb",0,0,0,0]
["Mar",4,0,0.4,{"$f":"+E8","v":1},0,0,null,null,null,"Mar",0,0.4,0,0,null,"Whole Installation table A5:G18:"]
["Apr",4,0,0.3,1,0,0,null,null,null,"Apr",0,0.3,0,0,null,"Mean: for 1/2 hourly and daily periods calculate mean of values across all operational combustion lines for the month"]
["May",{"$f":"+B10","v":4},0,0,1,0,0,null,null,null,"May",0,0,0,0]
["Jun",4,0,0.7,1,0,0,null,null,null,"Jun",0,0.7,0,0]
["Jul",4,0,0.4,1,0,0.1,null,null,null,"Jul",0,0,0,0,null,"Maximum: for 1/2 hourly and daily periods use the highest value across all operational combustion lines for the month"]
["Aug",4,0,0.7,1,0,0.4,null,null,null,"Aug",0,0.1,0,0]
["Sep",4,0,0.6,1,0,0.1,null,null,null,"Sep",0,0.3,0,0]
["Oct",4,0,0.4,1,0,0,null,null,null,"Oct",0,0.1,0,0]
["Nov",4,0,1,1,0,0,null,null,null,"Nov",0,0,0,0]
["Dec",4,0,0.9,1,0,0.7,null,null,null,"Dec",0,0.4,0,0]
[null,null,null,null,null,null,null,null,null,null,"Annual",{"$f":"AVERAGE(L7:L18)","v":0},{"$f":"MAX(M7:M18)","v":0.7},{"$f":"AVERAGE(N7:N18)","v":0},{"$f":"MAX(O7:O18)","v":0}]
[]
[null,null,null,null,null,null,null,null,null,{"$f":"+A6","v":2021},"mg/Nm3","Monthly 1/2 hourly mean","Monthly 1/2 hourly maximum","Monthly daily mean","Monthly daily maximum"]
[null,null,null,null,null,null,null,null,null,"A2","Jan",0,0,0,0]
[null,null,null,null,null,null,null,null,null,null,"Feb",0,0,0,0]
[null,null,null,null,null,null,null,null,null,null,"Mar",0,0,0,0]
[null,null,null,null,null,null,null,null,null,null,"Apr",0,0,0,0]
[null,null,null,null,null,null,null,null,null,null,"May",0,0,0,0]
[null,null,null,null,null,null,null,null,null,null,"Jun",0,0.4,0,0]
[null,null,null,null,null,null,null,null,null,null,"Jul",0,0.4,0,0.1]
[null,null,null,null,null,null,null,null,null,null,"Aug",0,0.7,0,0.4]
[null,null,null,null,null,null,null,null,null,null,"Sep",0,0.6,0,0.1]
[null,null,null,null,null,null,null,null,null,null,"Oct",0,0.4,0,0]
[null,null,null,null,null,null,null,null,null,null,"Nov",0,1,0,0]
[null,null,null,null,null,null,null,null,null,null,"Dec",0,0.9,0,0.7]
[null,null,null,null,null,null,null,null,null,null,"Annual",{"$f":"AVERAGE(L22:L33)","v":0},{"$f":"MAX(M22:M33)","v":1},{"$f":"AVERAGE(N22:N33)","v":0},{"$f":"MAX(O22:O33)","v":0.7}]
[]
[null,null,null,null,null,null,null,null,null,{"$f":"+A6","v":2021},"mg/Nm3","Monthly 1/2 hourly mean","Monthly 1/2 hourly maximum","Monthly daily mean","Monthly daily maximum"]
[null,null,null,null,null,null,null,null,null,"A3","Jan"]
[null,null,null,null,null,null,null,null,null,null,"Feb"]
[null,null,null,null,null,null,null,null,null,null,"Mar"]
[null,null,null,null,null,null,null,null,null,null,"Apr"]
[null,null,null,null,null,null,null,null,null,null,"May"]
[null,null,null,null,null,null,null,null,null,null,"Jun"]
[null,null,null,null,null,null,null,null,null,null,"Jul"]
[null,null,null,null,null,null,null,null,null,null,"Aug"]
[null,null,null,null,null,null,null,null,null,null,"Sep"]
[null,null,null,null,null,null,null,null,null,null,"Oct"]
[null,null,null,null,null,null,null,null,null,null,"Nov"]
["Comments :",null,null,null,null,null,null,null,null,null,"Dec"]
[null,null,null,null,null,null,null,null,null,null,"Annual",{"$f":"AVERAGE(L37:L48)","v":{"$error":"#DIV/0!"}},{"$f":"MAX(M37:M48)","v":0},{"$f":"AVERAGE(N37:N48)","v":{"$error":"#DIV/0!"}},{"$f":"MAX(O37:O48)","v":0}]
[]
[null,null,null,null,null,null,null,null,null,{"$f":"+A6","v":2021},"mg/Nm3","Monthly 1/2 hourly mean","Monthly 1/2 hourly maximum","Monthly daily mean","Monthly daily maximum"]
[null,null,null,null,null,null,null,null,null,"A4","Jan"]
[null,null,null,null,null,null,null,null,null,null,"Feb"]
[null,null,null,null,null,null,null,null,null,null,"Mar"]
[null,null,null,null,null,null,null,null,null,null,"Apr"]
[null,null,null,null,null,null,null,null,null,null,"May"]
[null,null,null,null,null,null,null,null,null,null,"Jun"]
[null,null,null,null,null,null,null,null,null,null,"Jul"]
[null,null,null,null,null,null,null,null,null,null,"Aug"]
[null,null,null,null,null,null,null,null,null,null,"Sep"]
[null,null,null,null,null,null,null,null,null,null,"Oct"]
[null,null,null,null,null,null,null,null,null,null,"Nov"]
[null,null,null,null,null,null,null,null,null,null,"Dec"]
[null,null,null,null,null,null,null,null,null,null,"Annual",{"$f":"AVERAGE(L52:L63)","v":{"$error":"#DIV/0!"}},{"$f":"MAX(M52:M63)","v":0},{"$f":"AVERAGE(N52:N63)","v":{"$error":"#DIV/0!"}},{"$f":"MAX(O52:O63)","v":0}]
[]
[null,null,null,null,null,null,null,null,null,{"$f":"+A6","v":2021},"mg/Nm3","Monthly 1/2 hourly mean","Monthly 1/2 hourly maximum","Monthly daily mean","Monthly daily maximum"]
[null,null,null,null,null,null,null,null,null,"A5","Jan"]
[null,null,null,null,null,null,null,null,null,null,"Feb"]
[null,null,null,null,null,null,null,null,null,null,"Mar"]
[null,null,null,null,null,null,null,null,null,null,"Apr"]
[null,null,null,null,null,null,null,null,null,null,"May"]
[null,null,null,null,null,null,null,null,null,null,"Jun"]
[null,null,null,null,null,null,null,null,null,null,"Jul"]
[null,null,null,null,null,null,null,null,null,null,"Aug"]
[null,null,null,null,null,null,null,null,null,null,"Sep"]
[null,null,null,null,null,null,null,null,null,null,"Oct"]
[null,null,null,null,null,null,null,null,null,null,"Nov"]
[null,null,null,null,null,null,null,null,null,null,"Dec"]
[null,null,null,null,null,null,null,null,null,null,"Annual",{"$f":"AVERAGE(L67:L78)","v":{"$error":"#DIV/0!"}},{"$f":"MAX(M67:M78)","v":0},{"$f":"AVERAGE(N67:N78)","v":{"$error":"#DIV/0!"}},{"$f":"MAX(O67:O78)","v":0}]

{"sheet":"NH3","index":21,"n_rows":79,"n_cols":17,"rows_kept":79,"cut":false,"hidden":false,"merged":[[3,16,7,18],[9,16,11,18],[12,16,15,18],[66,9,78,9],[4,1,4,3],[4,4,4,6],[4,9,4,14],[6,9,18,9],[21,9,33,9],[36,9,48,9],[47,0,47,6],[48,0,51,6],[51,9,63,9]]}
[{"$f":"+'Cover Page'!$B$29","v":"Annual Performance Report 2021"},null,null,null,{"$f":"+'Cover Page'!$B$33","v":"Cornwall Energy Recovery Centre"}]
[]
["Monitoring of Ammnonia emissions ",null,null,"Whole Installation",null,null,"See  Notes in Cell Q3",null,null,{"$f":"+A3","v":"Monitoring of Ammnonia emissions "},null,null,null,"Per Combustion Line",null,null,"Notes:"]
[null,null,null,null,null,null,null,null,null,null,null,null,null,null,null,null,"User to add logic to complete Whole installation, Table A5:G18. From the data in Per Combustion Line, Table J6:O79, subject to No. of lines installed"]
["mg/Nm3","1/2 Hourly Reference Periods",null,null,"Daily Reference Periods"]
[{"$f":"+'Cover Page'!C39","v":2021},"1/2 hourly NH3 ELV","Monthly 1/2 hourly mean","Highest 1/2 hourly maximum","Daily NH3 ELV","Monthly daily mean","Highest daily maximum",null,null,{"$f":"+A6","v":2021},"mg/Nm3","Monthly 1/2 hourly mean","Monthly 1/2 hourly maximum","Monthly daily mean","Monthly daily maximum"]
["Jan",0,{"$f":"AVERAGE(L7,L22)","v":0.25},{"$f":"MAX(M7,M22)","v":8.8000000000000007},10,{"$f":"AVERAGE(N7,N22)","v":0.25},{"$f":"MAX(O7,O22)","v":0.7},null,null,"A1","Jan",0.1,1.2,0.1,0.4]
["Feb",{"$f":"+B7","v":0},{"$f":"AVERAGE(L8,L23)","v":0.25},{"$f":"MAX(M8,M23)","v":2.5},{"$f":"+E7","v":10},{"$f":"AVERAGE(N8,N23)","v":0.25},{"$f":"MAX(O8,O23)","v":0.4},null,null,null,"Feb",0.2,0.6,0.2,0.4]
["Mar",{"$f":"+B8","v":0},0.2,3.9,{"$f":"+E8","v":10},0.2,0.6,null,null,null,"Mar",0.1,1.9,0.1,0.2,null,"Whole Installation table A5:G18:"]
["Apr",0,0,3,10,0,1,null,null,null,"Apr",0,3,0,1,null,"Mean: for 1/2 hourly and daily periods calculate mean of values across all operational combustion lines for the month"]
["May",0,0,2,10,0,1,null,null,null,"May",0,0.5,0,0]
["Jun",0,0.05,14.9,10,0.05,1.3,null,null,null,"Jun",0,0.2,0,0.1]
["Jul",0,0.1,2.1,10,0.1,0.5,null,null,null,"Jul",0,0.4,0,0.1,null,"Maximum: for 1/2 hourly and daily periods use the highest value across all operational combustion lines for the month"]
["Aug",0,0.1,4.3,10,0.1,1.7,null,null,null,"Aug",0.1,0.4,0.1,0.1]
["Sep",0,0,0.2,10,0,0.1,null,null,null,"Sep",0,0.2,0,0.1]
["Oct",0,0.2,0.2,10,0.05,0.1,null,null,null,"Oct",0.1,0.2,0.1,0.1]
["Nov",0,0,1,10,0,0,null,null,null,"Nov",0,0,0,0]
["Dec",0,0,0.9,10,0,0.2,null,null,null,"Dec",0,0.5,0,0.2]
[null,null,null,null,null,null,null,null,null,null,"Annual",{"$f":"AVERAGE(L7:L18)","v":4.9999999999999996E-2},{"$f":"MAX(M7:M18)","v":3},{"$f":"AVERAGE(N7:N18)","v":4.9999999999999996E-2},{"$f":"MAX(O7:O18)","v":1}]
[]
[null,null,null,null,null,null,null,null,null,{"$f":"+A6","v":2021},"mg/Nm3","Monthly 1/2 hourly mean","Monthly 1/2 hourly maximum","Monthly daily mean","Monthly daily maximum"]
[null,null,null,null,null,null,null,null,null,"A2","Jan",0.4,8.8000000000000007,0.4,0.7]
[null,null,null,null,null,null,null,null,null,null,"Feb",0.3,2.5,0.3,0.4]
[null,null,null,null,null,null,null,null,null,null,"Mar",0.3,3.9,0.3,0.6]
[null,null,null,null,null,null,null,null,null,null,"Apr",0,2,0,0]
[null,null,null,null,null,null,null,null,null,null,"May",0,2,0,1]
[null,null,null,null,null,null,null,null,null,null,"Jun",0.1,14.9,0.1,1.3]
[null,null,null,null,null,null,null,null,null,null,"Jul",0.2,2.1,0.2,0.5]
[null,null,null,null,null,null,null,null,null,null,"Aug",0.1,4.3,0.1,1.7]
[null,null,null,null,null,null,null,null,null,null,"Sep",0,0.2,0,0]
[null,null,null,null,null,null,null,null,null,null,"Oct",0.3,0,0,0]
[null,null,null,null,null,null,null,null,null,null,"Nov",0,1,0,0]
[null,null,null,null,null,null,null,null,null,null,"Dec",0,0.9,0,0]
[null,null,null,null,null,null,null,null,null,null,"Annual",{"$f":"AVERAGE(L22:L33)","v":0.14166666666666669},{"$f":"MAX(M22:M33)","v":14.9},{"$f":"AVERAGE(N22:N33)","v":0.11666666666666668},{"$f":"MAX(O22:O33)","v":1.7}]
[]
[null,null,null,null,null,null,null,null,null,{"$f":"+A6","v":2021},"mg/Nm3","Monthly 1/2 hourly mean","Monthly 1/2 hourly maximum","Monthly daily mean","Monthly daily maximum"]
[null,null,null,null,null,null,null,null,null,"A3","Jan"]
[null,null,null,null,null,null,null,null,null,null,"Feb"]
[null,null,null,null,null,null,null,null,null,null,"Mar"]
[null,null,null,null,null,null,null,null,null,null,"Apr"]
[null,null,null,null,null,null,null,null,null,null,"May"]
[null,null,null,null,null,null,null,null,null,null,"Jun"]
[null,null,null,null,null,null,null,null,null,null,"Jul"]
[null,null,null,null,null,null,null,null,null,null,"Aug"]
[null,null,null,null,null,null,null,null,null,null,"Sep"]
[null,null,null,null,null,null,null,null,null,null,"Oct"]
[null,null,null,null,null,null,null,null,null,null,"Nov"]
["Comments :",null,null,null,null,null,null,null,null,null,"Dec"]
["An indicated ELV value of zero in the table above means that no ammonia limit is set in the permit.  ",null,null,null,null,null,null,null,null,null,"Annual",{"$f":"AVERAGE(L37:L48)","v":{"$error":"#DIV/0!"}},{"$f":"MAX(M37:M48)","v":0},{"$f":"AVERAGE(N37:N48)","v":{"$error":"#DIV/0!"}},{"$f":"MAX(O37:O48)","v":0}]
[]
[null,null,null,null,null,null,null,null,null,{"$f":"+A6","v":2021},"mg/Nm3","Monthly 1/2 hourly mean","Monthly 1/2 hourly maximum","Monthly daily mean","Monthly daily maximum"]
[null,null,null,null,null,null,null,null,null,"A4","Jan"]
[null,null,null,null,null,null,null,null,null,null,"Feb"]
[null,null,null,null,null,null,null,null,null,null,"Mar"]
[null,null,null,null,null,null,null,null,null,null,"Apr"]
[null,null,null,null,null,null,null,null,null,null,"May"]
[null,null,null,null,null,null,null,null,null,null,"Jun"]
[null,null,null,null,null,null,null,null,null,null,"Jul"]
[null,null,null,null,null,null,null,null,null,null,"Aug"]
[null,null,null,null,null,null,null,null,null,null,"Sep"]
[null,null,null,null,null,null,null,null,null,null,"Oct"]
[null,null,null,null,null,null,null,null,null,null,"Nov"]
[null,null,null,null,null,null,null,null,null,null,"Dec"]
[null,null,null,null,null,null,null,null,null,null,"Annual",{"$f":"AVERAGE(L52:L63)","v":{"$error":"#DIV/0!"}},{"$f":"MAX(M52:M63)","v":0},{"$f":"AVERAGE(N52:N63)","v":{"$error":"#DIV/0!"}},{"$f":"MAX(O52:O63)","v":0}]
[]
[null,null,null,null,null,null,null,null,null,{"$f":"+A6","v":2021},"mg/Nm3","Monthly 1/2 hourly mean","Monthly 1/2 hourly maximum","Monthly daily mean","Monthly daily maximum"]
[null,null,null,null,null,null,null,null,null,"A5","Jan"]
[null,null,null,null,null,null,null,null,null,null,"Feb"]
[null,null,null,null,null,null,null,null,null,null,"Mar"]
[null,null,null,null,null,null,null,null,null,null,"Apr"]
[null,null,null,null,null,null,null,null,null,null,"May"]
[null,null,null,null,null,null,null,null,null,null,"Jun"]
[null,null,null,null,null,null,null,null,null,null,"Jul"]
[null,null,null,null,null,null,null,null,null,null,"Aug"]
[null,null,null,null,null,null,null,null,null,null,"Sep"]
[null,null,null,null,null,null,null,null,null,null,"Oct"]
[null,null,null,null,null,null,null,null,null,null,"Nov"]
[null,null,null,null,null,null,null,null,null,null,"Dec"]
[null,null,null,null,null,null,null,null,null,null,"Annual",{"$f":"AVERAGE(L67:L78)","v":{"$error":"#DIV/0!"}},{"$f":"MAX(M67:M78)","v":0},{"$f":"AVERAGE(N67:N78)","v":{"$error":"#DIV/0!"}},{"$f":"MAX(O67:O78)","v":0}]